Workbook

Sheet INTRO
B2: Joint request for selected PC medicines v.4.1
B4: As part of global efforts to accelerate expansion of preventive chemotherapy (PC) for control and elimination of lymphatic filariasis, schistosomiasis and soil-transmitted helminthiases, the World Health Organization (WHO) facilitates the supply of albendazole 400 mg tablets (GSK) to national lymphatic filariasis elimination programmes and national soil-transmitted helminth control programmes; diethylcarbamazine citrate 100 mg tablets (Eisai) to national lymphatic filariasis elimination programmes; mebendazole 500 mg tablets (J&J) for national soil-transmitted helminth control programmes; and praziquantel 600 mg tablets (Merck KGaA) for school-age children to national schistosomiasis control programmes. WHO also collaborates to supply ivermectin 3 mg tablets (Merck) for onchocerciasis and lymphatic filariasis donation programmes. This Excel-based tool is designed to assist countries in quantifying the number of tablets of relevant PC medicines required to reach the planned target population and districts for the year of request. Output of the tool is a joint request for PC medicines, which can be printed, signed and submitted to WHO to request these medicines.
B6: Structure of the application (worksheets):
B8: INTRO | C8: This worksheet includes guides on how to complete the joint request for selected PC medicines and information about the status of PC for endemic diseases in the country.
B9: COUNTRY_INFO | C9: This worksheet includes information about administrative structure of the country, population by age group, status of endemicity for each disease, population requiring PC and planned interventions.
B10: DEC, ALB_MBD, PZQ and IVM | C10: These worksheets include information about endemic districts targeted for treatment with specified PC medicines, treatment plan, and number of tablets required and requested.
B11: SUMMARY | C11: This worksheet includes summary of number of tablets requested, information about stock, and date for submission of requested medicines. Before generating the report (run macros) please select the medicine for which the report is needed. Follow the same rule to see the number of people to be treated for the specific disease. This worksheet should be printed and submitted as a joint request for selected PC medicines (see the instruction for submission in the SUMMARY worksheet).
B13: Instruction for data entry
B15: Most of the cells in the above-mentioned worksheets include formula that are calculated automatically according to the treatment policy recommended by WHO for each disease. See the link https://www.who.int/publications/i/item/9789241599993.
B17: Please enter your data into the cells according to their colour code:
C19: White - cell is not protected. Please enter the value of the requested indicator.
C21: Yellow - cell is protected and includes name of indicator. No data entry required.
C23: Orange - cell is not protected and includes a drop-down menu. Please select the value from the drop-down list.
C26: Green - cell is not protected and includes formula. Please change the value only if your data are different from those that are calculated automatically.
C29: Blue - cell is protected and includes formula. No data entry required.
B31: Country data
B33: COUNTRY | E33: Sao Tome & Principe
E34: 5
B35: Year for request of the medicine | E35: 2024
B37: Is country endemic for lymphatic filariasis (LF)? | E37: Endemic
B39: Is country endemic for onchocerciasis (ONCHO)? | E39: Non-endemic
B41: Is country endemic for soil-transmitted helminthiases (STH)? | E41: Endemic
B43: Is country endemic for schistosomiasis (SCH)? | E43: Endemic
B45: How many administrative units in the country? | E45: 7
B47: If demographical data at the second administrative level are not available by age group, please enter the proportion (%) of population by age group in the country. If data are available, please leave these cells blank.
B48: 1-4 years age | C48: Preschool-age children (PreSAC) | E48: 0.1084
B49: 5-14 years age | C49: School-age children (SAC) | E49: 0.2642
B50: 15 years + | C50: Adults | E50: 0.5996
B51: 15-49 years | C51: Women of reproductive age (WRA) | E51: 0.2418

Sheet COUNTRY_INFO
A1: COUNTRY INFORMATION
A2: Administrative structure, population by age group, status of endemicity and planned interventions
A4: TOTAL | D4: =SUBTOTAL(9,D$10:D$1010) -> 226232 | E4: =SUBTOTAL(9,E$10:E$1010) -> 24523 | F4: 59770 | G4: 135649 | L4: =SUBTOTAL(9,L$10:L$1010) -> 0 | M4: 0 | N4: 24523 | O4: 59770 | P4: 54703 | Q4: 138996 | R4: 11684 | S4: 37969 | T4: 86171 | U4: 135824
A6: Country administrative structure | D6: Population | H6: Endemicity | L6: Population requiring PC | V6: Number of treatment rounds planned for the year | Z6: Criteria to apply for IVM+DEC+ALB therapy | AA6: Epidemiological surveys planned for the year
A7: Country | B7: Province/State | C7: District | D7: Total | E7: PreSAC | F7: SAC | G7: Adults | H7: LF | I7: Oncho | J7: STH | K7: SCH | L7: LF | M7: ONCHO | N7: STH | R7: SCH | V7: LF | W7: Oncho | X7: STH | Y7: SCH | Z7: LF | AA7: LF | AB7: Oncho | AC7: STH | AD7: SCH
N8: PreSAC | O8: SAC | P8: WRA | Q8: TOTAL | R8: PreSAC | S8: SAC | T8: Adults | U8: TOTAL
A10: =IF(INTRO!$E$33<>0,INTRO!$E$33, " ") -> Sao Tome & Principe | B10: Sao Tome | C10: Agua Grande | D10: =ROUND(AH10*1.0184,0) -> 86828 | E10: =IF(INTRO!$E$48="","",ROUND($D10*INTRO!$E$48,0)) -> 9412 | F10: =IF(INTRO!$E$49="","",ROUND($D10*INTRO!$E$49,0)) -> 22940 | G10: =IF(INTRO!$E$50="","",ROUND($D10*INTRO!$E$50,0)) -> 52062 | H10: 99 | J10: 3 | K10: 2 | L10: =IF(INTRO!$E$37="Endemic",IF($H10>0,IF($H10=4,"Unknown",IF($H10=99,"Stopped",$D10)),0),"Not required") -> Stopped | M10: =IF(INTRO!$E$39="Endemic", IF($I10>0, IF($I10=4,"Unknown",IF($I10=99,"Stopped",$D10)), 0),"Not required") -> Not required | N10: =IF(INTRO!$E$41="Endemic", IF($J10>1, IF($J10=4, "Unknown", IF($J10=99, "Surveillance", E10)), 0),"Not required") -> 9412 | O10: =IF(INTRO!$E$41="Endemic", IF($J10>1, IF($J10=4, "Unknown", IF($J10=99, "Surveillance", F10)), 0),"Not required") -> 22940 | P10: =IF(INTRO!$E$41="Endemic", IF($J10>1, IF($J10=4, "Unknown", IF($J10=99, "Surveillance", ROUND(D10*INTRO!$E$51,0))), 0),"Not required") -> 20995 | Q10: =IF(INTRO!$E$41="Endemic", IF($J10>1, IF($J10=4, "Unknown", IF($J10=99, "Surveillance", SUM($N10:$P10))), 0),"Not required") -> 53347 | R10: =IF(INTRO!$E$43="Endemic", IF($K10>1, IF($K10=4, "Unknown", IF($K10=99, "Surveillance", ROUND(E10*0.75,0))), 0),"Not required") -> 7059 | S10: =IF(INTRO!$E$43="Endemic", IF($K10>1, IF($K10=4, "Unknown", IF($K10=99, "Surveillance", F10)), 0),"Not required") -> 22940 | T10: =IF(INTRO!$E$43="Endemic", IF($K10>1, IF($K10=4, "Unknown", IF($K10=99, "Surveillance", G10)), 0),"Not required") -> 52062 | U10: =IF(INTRO!$E$43="Endemic", IF($K10>1, IF($K10=4, "Unknown", IF($K10=99, "Surveillance", SUM($R10:$T10))), 0),"Not required") -> 82061 | V10: 0 | X10: 2 | Y10: 1 | AA10: TAS | AC10: Yes | AD10: Yes | AH10: 85259
A11: =IF(INTRO!$E$33<>0,INTRO!$E$33, " ") -> Sao Tome & Principe | B11: Sao Tome | C11: Me-zochi | D11: =ROUND(AH11*1.0184,0) -> 56886 | E11: =IF(INTRO!$E$48="","",ROUND($D11*INTRO!$E$48,0)) -> 6166 | F11: =IF(INTRO!$E$49="","",ROUND($D11*INTRO!$E$49,0)) -> 15029 | G11: =IF(INTRO!$E$50="","",ROUND($D11*INTRO!$E$50,0)) -> 34109 | H11: 99 | J11: 3 | K11: 2 | L11: =IF(INTRO!$E$37="Endemic",IF($H11>0,IF($H11=4,"Unknown",IF($H11=99,"Stopped",$D11)),0),"Not required") -> Stopped | M11: =IF(INTRO!$E$39="Endemic", IF($I11>0, IF($I11=4,"Unknown",IF($I11=99,"Stopped",$D11)), 0),"Not required") -> Not required | N11: =IF(INTRO!$E$41="Endemic", IF($J11>1, IF($J11=4, "Unknown", IF($J11=99, "Surveillance", E11)), 0),"Not required") -> 6166 | O11: =IF(INTRO!$E$41="Endemic", IF($J11>1, IF($J11=4, "Unknown", IF($J11=99, "Surveillance", F11)), 0),"Not required") -> 15029 | P11: =IF(INTRO!$E$41="Endemic", IF($J11>1, IF($J11=4, "Unknown", IF($J11=99, "Surveillance", ROUND(D11*INTRO!$E$51,0))), 0),"Not required") -> 13755 | Q11: =IF(INTRO!$E$41="Endemic", IF($J11>1, IF($J11=4, "Unknown", IF($J11=99, "Surveillance", SUM($N11:$P11))), 0),"Not required") -> 34950 | R11: =IF(INTRO!$E$43="Endemic", IF($K11>1, IF($K11=4, "Unknown", IF($K11=99, "Surveillance", ROUND(E11*0.75,0))), 0),"Not required") -> 4625 | S11: =IF(INTRO!$E$43="Endemic", IF($K11>1, IF($K11=4, "Unknown", IF($K11=99, "Surveillance", F11)), 0),"Not required") -> 15029 | T11: =IF(INTRO!$E$43="Endemic", IF($K11>1, IF($K11=4, "Unknown", IF($K11=99, "Surveillance", G11)), 0),"Not required") -> 34109 | U11: =IF(INTRO!$E$43="Endemic", IF($K11>1, IF($K11=4, "Unknown", IF($K11=99, "Surveillance", SUM($R11:$T11))), 0),"Not required") -> 53763 | V11: 0 | X11: 2 | Y11: 1 | AA11: TAS | AC11: Yes | AD11: Yes | AH11: 55858
A12: =IF(INTRO!$E$33<>0,INTRO!$E$33, " ") -> Sao Tome & Principe | B12: Sao Tome | C12: Lobata | D12: 25115 | E12: =IF(INTRO!$E$48="","",ROUND($D12*INTRO!$E$48,0)) -> 2722 | F12: =IF(INTRO!$E$49="","",ROUND($D12*INTRO!$E$49,0)) -> 6635 | G12: =IF(INTRO!$E$50="","",ROUND($D12*INTRO!$E$50,0)) -> 15059 | H12: 99 | J12: 3 | K12: 1 | L12: =IF(INTRO!$E$37="Endemic",IF($H12>0,IF($H12=4,"Unknown",IF($H12=99,"Stopped",$D12)),0),"Not required") -> Stopped | M12: =IF(INTRO!$E$39="Endemic", IF($I12>0, IF($I12=4,"Unknown",IF($I12=99,"Stopped",$D12)), 0),"Not required") -> Not required | N12: =IF(INTRO!$E$41="Endemic", IF($J12>1, IF($J12=4, "Unknown", IF($J12=99, "Surveillance", E12)), 0),"Not required") -> 2722 | O12: =IF(INTRO!$E$41="Endemic", IF($J12>1, IF($J12=4, "Unknown", IF($J12=99, "Surveillance", F12)), 0),"Not required") -> 6635 | P12: =IF(INTRO!$E$41="Endemic", IF($J12>1, IF($J12=4, "Unknown", IF($J12=99, "Surveillance", ROUND(D12*INTRO!$E$51,0))), 0),"Not required") -> 6073 | Q12: =IF(INTRO!$E$41="Endemic", IF($J12>1, IF($J12=4, "Unknown", IF($J12=99, "Surveillance", SUM($N12:$P12))), 0),"Not required") -> 15430 | R12: =IF(INTRO!$E$43="Endemic", IF($K12>1, IF($K12=4, "Unknown", IF($K12=99, "Surveillance", ROUND(E12*0.75,0))), 0),"Not required") -> 0 | T12: =IF(INTRO!$E$43="Endemic", IF($K12>1, IF($K12=4, "Unknown", IF($K12=99, "Surveillance", G12)), 0),"Not required") -> 0 | U12: =IF(INTRO!$E$43="Endemic", IF($K12>1, IF($K12=4, "Unknown", IF($K12=99, "Surveillance", SUM($R12:$T12))), 0),"Not required") -> 0 | V12: 0 | X12: 2 | AA12: TAS | AC12: Yes | AD12: Yes | AH12: 24661
A13: =IF(INTRO!$E$33<>0,INTRO!$E$33, " ") -> Sao Tome & Principe | B13: Sao Tome | C13: Cantagalo | D13: 21698 | E13: =IF(INTRO!$E$48="","",ROUND($D13*INTRO!$E$48,0)) -> 2352 | F13: =IF(INTRO!$E$49="","",ROUND($D13*INTRO!$E$49,0)) -> 5733 | G13: =IF(INTRO!$E$50="","",ROUND($D13*INTRO!$E$50,0)) -> 13010 | H13: 99 | J13: 3 | K13: 1 | L13: =IF(INTRO!$E$37="Endemic",IF($H13>0,IF($H13=4,"Unknown",IF($H13=99,"Stopped",$D13)),0),"Not required") -> Stopped | M13: =IF(INTRO!$E$39="Endemic", IF($I13>0, IF($I13=4,"Unknown",IF($I13=99,"Stopped",$D13)), 0),"Not required") -> Not required | N13: =IF(INTRO!$E$41="Endemic", IF($J13>1, IF($J13=4, "Unknown", IF($J13=99, "Surveillance", E13)), 0),"Not required") -> 2352 | O13: =IF(INTRO!$E$41="Endemic", IF($J13>1, IF($J13=4, "Unknown", IF($J13=99, "Surveillance", F13)), 0),"Not required") -> 5733 | P13: =IF(INTRO!$E$41="Endemic", IF($J13>1, IF($J13=4, "Unknown", IF($J13=99, "Surveillance", ROUND(D13*INTRO!$E$51,0))), 0),"Not required") -> 5247 | Q13: =IF(INTRO!$E$41="Endemic", IF($J13>1, IF($J13=4, "Unknown", IF($J13=99, "Surveillance", SUM($N13:$P13))), 0),"Not required") -> 13332 | R13: =IF(INTRO!$E$43="Endemic", IF($K13>1, IF($K13=4, "Unknown", IF($K13=99, "Surveillance", ROUND(E13*0.75,0))), 0),"Not required") -> 0 | S13: =IF(INTRO!$E$43="Endemic", IF($K13>1, IF($K13=4, "Unknown", IF($K13=99, "Surveillance", F13)), 0),"Not required") -> 0 | T13: =IF(INTRO!$E$43="Endemic", IF($K13>1, IF($K13=4, "Unknown", IF($K13=99, "Surveillance", G13)), 0),"Not required") -> 0 | U13: =IF(INTRO!$E$43="Endemic", IF($K13>1, IF($K13=4, "Unknown", IF($K13=99, "Surveillance", SUM($R13:$T13))), 0),"Not required") -> 0 | V13: 0 | X13: 2 | AA13: TAS | AC13: Yes | AD13: Yes | AH13: 21306
A14: =IF(INTRO!$E$33<>0,INTRO!$E$33, " ") -> Sao Tome & Principe | B14: Sao Tome | C14: Lemba | D14: 18172 | E14: =IF(INTRO!$E$48="","",ROUND($D14*INTRO!$E$48,0)) -> 1970 | F14: =IF(INTRO!$E$49="","",ROUND($D14*INTRO!$E$49,0)) -> 4801 | G14: =IF(INTRO!$E$50="","",ROUND($D14*INTRO!$E$50,0)) -> 10896 | H14: 99 | J14: 3 | K14: 1 | L14: =IF(INTRO!$E$37="Endemic",IF($H14>0,IF($H14=4,"Unknown",IF($H14=99,"Stopped",$D14)),0),"Not required") -> Stopped | M14: =IF(INTRO!$E$39="Endemic", IF($I14>0, IF($I14=4,"Unknown",IF($I14=99,"Stopped",$D14)), 0),"Not required") -> Not required | N14: =IF(INTRO!$E$41="Endemic", IF($J14>1, IF($J14=4, "Unknown", IF($J14=99, "Surveillance", E14)), 0),"Not required") -> 1970 | O14: =IF(INTRO!$E$41="Endemic", IF($J14>1, IF($J14=4, "Unknown", IF($J14=99, "Surveillance", F14)), 0),"Not required") -> 4801 | P14: =IF(INTRO!$E$41="Endemic", IF($J14>1, IF($J14=4, "Unknown", IF($J14=99, "Surveillance", ROUND(D14*INTRO!$E$51,0))), 0),"Not required") -> 4394 | Q14: =IF(INTRO!$E$41="Endemic", IF($J14>1, IF($J14=4, "Unknown", IF($J14=99, "Surveillance", SUM($N14:$P14))), 0),"Not required") -> 11165 | R14: =IF(INTRO!$E$43="Endemic", IF($K14>1, IF($K14=4, "Unknown", IF($K14=99, "Surveillance", ROUND(E14*0.75,0))), 0),"Not required") -> 0 | S14: =IF(INTRO!$E$43="Endemic", IF($K14>1, IF($K14=4, "Unknown", IF($K14=99, "Surveillance", F14)), 0),"Not required") -> 0 | T14: =IF(INTRO!$E$43="Endemic", IF($K14>1, IF($K14=4, "Unknown", IF($K14=99, "Surveillance", G14)), 0),"Not required") -> 0 | U14: =IF(INTRO!$E$43="Endemic", IF($K14>1, IF($K14=4, "Unknown", IF($K14=99, "Surveillance", SUM($R14:$T14))), 0),"Not required") -> 0 | V14: 0 | X14: 2 | AA14: TAS | AC14: Yes | AD14: Yes | AH14: 17844
A15: =IF(INTRO!$E$33<>0,INTRO!$E$33, " ") -> Sao Tome & Principe | B15: Sao Tome | C15: Cauè | D15: 8099 | E15: =IF(INTRO!$E$48="","",ROUND($D15*INTRO!$E$48,0)) -> 878 | F15: =IF(INTRO!$E$49="","",ROUND($D15*INTRO!$E$49,0)) -> 2140 | G15: =IF(INTRO!$E$50="","",ROUND($D15*INTRO!$E$50,0)) -> 4856 | H15: 99 | J15: 3 | K15: 1 | L15: =IF(INTRO!$E$37="Endemic",IF($H15>0,IF($H15=4,"Unknown",IF($H15=99,"Stopped",$D15)),0),"Not required") -> Stopped | M15: =IF(INTRO!$E$39="Endemic", IF($I15>0, IF($I15=4,"Unknown",IF($I15=99,"Stopped",$D15)), 0),"Not required") -> Not required | N15: =IF(INTRO!$E$41="Endemic", IF($J15>1, IF($J15=4, "Unknown", IF($J15=99, "Surveillance", E15)), 0),"Not required") -> 878 | O15: =IF(INTRO!$E$41="Endemic", IF($J15>1, IF($J15=4, "Unknown", IF($J15=99, "Surveillance", F15)), 0),"Not required") -> 2140 | P15: =IF(INTRO!$E$41="Endemic", IF($J15>1, IF($J15=4, "Unknown", IF($J15=99, "Surveillance", ROUND(D15*INTRO!$E$51,0))), 0),"Not required") -> 1958 | Q15: =IF(INTRO!$E$41="Endemic", IF($J15>1, IF($J15=4, "Unknown", IF($J15=99, "Surveillance", SUM($N15:$P15))), 0),"Not required") -> 4976 | R15: =IF(INTRO!$E$43="Endemic", IF($K15>1, IF($K15=4, "Unknown", IF($K15=99, "Surveillance", ROUND(E15*0.75,0))), 0),"Not required") -> 0 | S15: =IF(INTRO!$E$43="Endemic", IF($K15>1, IF($K15=4, "Unknown", IF($K15=99, "Surveillance", F15)), 0),"Not required") -> 0 | T15: =IF(INTRO!$E$43="Endemic", IF($K15>1, IF($K15=4, "Unknown", IF($K15=99, "Surveillance", G15)), 0),"Not required") -> 0 | U15: =IF(INTRO!$E$43="Endemic", IF($K15>1, IF($K15=4, "Unknown", IF($K15=99, "Surveillance", SUM($R15:$T15))), 0),"Not required") -> 0 | V15: 0 | X15: 2 | AA15: TAS | AC15: Yes | AD15: Yes | AH15: 7953
A16: =IF(INTRO!$E$33<>0,INTRO!$E$33, " ") -> Sao Tome & Principe | B16: Principe | C16: Píncipe | D16: 9434 | E16: =IF(INTRO!$E$48="","",ROUND($D16*INTRO!$E$48,0)) -> 1023 | F16: =IF(INTRO!$E$49="","",ROUND($D16*INTRO!$E$49,0)) -> 2492 | G16: =IF(INTRO!$E$50="","",ROUND($D16*INTRO!$E$50,0)) -> 5657 | H16: 99 | J16: 3 | K16: 1 | L16: =IF(INTRO!$E$37="Endemic",IF($H16>0,IF($H16=4,"Unknown",IF($H16=99,"Stopped",$D16)),0),"Not required") -> Stopped | M16: =IF(INTRO!$E$39="Endemic", IF($I16>0, IF($I16=4,"Unknown",IF($I16=99,"Stopped",$D16)), 0),"Not required") -> Not required | N16: =IF(INTRO!$E$41="Endemic", IF($J16>1, IF($J16=4, "Unknown", IF($J16=99, "Surveillance", E16)), 0),"Not required") -> 1023 | O16: =IF(INTRO!$E$41="Endemic", IF($J16>1, IF($J16=4, "Unknown", IF($J16=99, "Surveillance", F16)), 0),"Not required") -> 2492 | P16: =IF(INTRO!$E$41="Endemic", IF($J16>1, IF($J16=4, "Unknown", IF($J16=99, "Surveillance", ROUND(D16*INTRO!$E$51,0))), 0),"Not required") -> 2281 | Q16: =IF(INTRO!$E$41="Endemic", IF($J16>1, IF($J16=4, "Unknown", IF($J16=99, "Surveillance", SUM($N16:$P16))), 0),"Not required") -> 5796 | R16: =IF(INTRO!$E$43="Endemic", IF($K16>1, IF($K16=4, "Unknown", IF($K16=99, "Surveillance", ROUND(E16*0.75,0))), 0),"Not required") -> 0 | S16: =IF(INTRO!$E$43="Endemic", IF($K16>1, IF($K16=4, "Unknown", IF($K16=99, "Surveillance", F16)), 0),"Not required") -> 0 | T16: =IF(INTRO!$E$43="Endemic", IF($K16>1, IF($K16=4, "Unknown", IF($K16=99, "Surveillance", G16)), 0),"Not required") -> 0 | U16: =IF(INTRO!$E$43="Endemic", IF($K16>1, IF($K16=4, "Unknown", IF($K16=99, "Surveillance", SUM($R16:$T16))), 0),"Not required") -> 0 | V16: 0 | X16: 2 | AA16: TAS | AC16: Yes | AD16: Yes | AH16: 9264

Sheet DEC
A1: Diethylcarbamazine citrate (DEC)
A2: Administrative structure, eligible population by age group, treatment plan and information about tablets
A4: TOTAL | D4: =SUBTOTAL(9,D$10:D$1010) -> 0 | E4: 0 | F4: 0 | G4: 0 | I4: =SUBTOTAL(9,I$10:I$1010) -> 0 | J4: 0 | K4: 0 | L4: 0
A6: Country administrative structure | D6: Population requiring treatment with DEC | H6: Treatment plan | I6: Target population | J6: Diethylcarbamazine citrate (DEC)
A7: Country | B7: Province/State | C7: District | D7: PreSAC | E7: SAC | F7: Adults | G7: Total | H7: LF | I7: LF | J7: Total required | K7: Remaining in stock | L7: Tablets to be procured
A10: =IF(INTRO!$E$39<>"Non-endemic", " ", IF(INTRO!$E$37="Non-endemic"," ", IF(COUNTRY_INFO!A10=0," ",COUNTRY_INFO!A10))) -> Sao Tome & Principe | B10: =IF(INTRO!$E$39<>"Non-endemic", " ", IF(INTRO!$E$37="Non-endemic"," ", IF(COUNTRY_INFO!B10=0," ",COUNTRY_INFO!B10))) -> Sao Tome | C10: =IF(INTRO!$E$39<>"Non-endemic", " ", IF(INTRO!$E$37="Non-endemic"," ", IF(COUNTRY_INFO!C10=0," ",COUNTRY_INFO!C10))) -> Agua Grande | D10: =IF(INTRO!$E$39<>"Non-endemic", 0, IF(INTRO!$E$37="Non-endemic",0,IF(COUNTRY_INFO!$H10=1,COUNTRY_INFO!E10,0))) -> 0 | E10: =IF(INTRO!$E$39<>"Non-endemic", 0, IF(INTRO!$E$37="Non-endemic",0,IF(COUNTRY_INFO!$H10=1,COUNTRY_INFO!F10,0))) -> 0 | F10: =IF(INTRO!$E$39<>"Non-endemic", 0, IF(INTRO!$E$37="Non-endemic",0,IF(COUNTRY_INFO!$H10=1,COUNTRY_INFO!G10,0))) -> 0 | G10: =SUM(D10:F10) -> 0 | H10: =IF(INTRO!$E$39="Non-endemic",IF(INTRO!$E$37="Non-endemic","Not required",COUNTRY_INFO!V10),"Treat with IVM") -> 0 | I10: =IF(H10=1,G10,0) -> 0 | J10: =IF(I10>0,I10*2.5,0) -> 0 | K10: 0 | L10: =IF($J10>$K10,$J10-$K10,0) -> 0
A11: =IF(INTRO!$E$39<>"Non-endemic", " ", IF(INTRO!$E$37="Non-endemic"," ", IF(COUNTRY_INFO!A11=0," ",COUNTRY_INFO!A11))) -> Sao Tome & Principe | B11: =IF(INTRO!$E$39<>"Non-endemic", " ", IF(INTRO!$E$37="Non-endemic"," ", IF(COUNTRY_INFO!B11=0," ",COUNTRY_INFO!B11))) -> Sao Tome | C11: =IF(INTRO!$E$39<>"Non-endemic", " ", IF(INTRO!$E$37="Non-endemic"," ", IF(COUNTRY_INFO!C11=0," ",COUNTRY_INFO!C11))) -> Me-zochi | D11: =IF(INTRO!$E$39<>"Non-endemic", 0, IF(INTRO!$E$37="Non-endemic",0,IF(COUNTRY_INFO!$H11=1,COUNTRY_INFO!E11,0))) -> 0 | E11: =IF(INTRO!$E$39<>"Non-endemic", 0, IF(INTRO!$E$37="Non-endemic",0,IF(COUNTRY_INFO!$H11=1,COUNTRY_INFO!F11,0))) -> 0 | F11: =IF(INTRO!$E$39<>"Non-endemic", 0, IF(INTRO!$E$37="Non-endemic",0,IF(COUNTRY_INFO!$H11=1,COUNTRY_INFO!G11,0))) -> 0 | G11: =SUM(D11:F11) -> 0 | H11: =IF(INTRO!$E$39="Non-endemic",IF(INTRO!$E$37="Non-endemic","Not required",COUNTRY_INFO!V11),"Treat with IVM") -> 0 | I11: =IF(H11=1,G11,0) -> 0 | J11: =IF(I11>0,I11*2.5,0) -> 0 | K11: 0 | L11: 0
A12: =IF(INTRO!$E$39<>"Non-endemic", " ", IF(INTRO!$E$37="Non-endemic"," ", IF(COUNTRY_INFO!A12=0," ",COUNTRY_INFO!A12))) -> Sao Tome & Principe | B12: =IF(INTRO!$E$39<>"Non-endemic", " ", IF(INTRO!$E$37="Non-endemic"," ", IF(COUNTRY_INFO!B12=0," ",COUNTRY_INFO!B12))) -> Sao Tome | C12: =IF(INTRO!$E$39<>"Non-endemic", " ", IF(INTRO!$E$37="Non-endemic"," ", IF(COUNTRY_INFO!C12=0," ",COUNTRY_INFO!C12))) -> Lobata | D12: =IF(INTRO!$E$39<>"Non-endemic", 0, IF(INTRO!$E$37="Non-endemic",0,IF(COUNTRY_INFO!$H12=1,COUNTRY_INFO!E12,0))) -> 0 | E12: =IF(INTRO!$E$39<>"Non-endemic", 0, IF(INTRO!$E$37="Non-endemic",0,IF(COUNTRY_INFO!$H12=1,COUNTRY_INFO!F12,0))) -> 0 | F12: =IF(INTRO!$E$39<>"Non-endemic", 0, IF(INTRO!$E$37="Non-endemic",0,IF(COUNTRY_INFO!$H12=1,COUNTRY_INFO!G12,0))) -> 0 | G12: 0 | H12: =IF(INTRO!$E$39="Non-endemic",IF(INTRO!$E$37="Non-endemic","Not required",COUNTRY_INFO!V12),"Treat with IVM") -> 0 | I12: 0 | J12: 0 | K12: 0 | L12: 0
A13: =IF(INTRO!$E$39<>"Non-endemic", " ", IF(INTRO!$E$37="Non-endemic"," ", IF(COUNTRY_INFO!A13=0," ",COUNTRY_INFO!A13))) -> Sao Tome & Principe | B13: =IF(INTRO!$E$39<>"Non-endemic", " ", IF(INTRO!$E$37="Non-endemic"," ", IF(COUNTRY_INFO!B13=0," ",COUNTRY_INFO!B13))) -> Sao Tome | C13: =IF(INTRO!$E$39<>"Non-endemic", " ", IF(INTRO!$E$37="Non-endemic"," ", IF(COUNTRY_INFO!C13=0," ",COUNTRY_INFO!C13))) -> Cantagalo | D13: =IF(INTRO!$E$39<>"Non-endemic", 0, IF(INTRO!$E$37="Non-endemic",0,IF(COUNTRY_INFO!$H13=1,COUNTRY_INFO!E13,0))) -> 0 | E13: =IF(INTRO!$E$39<>"Non-endemic", 0, IF(INTRO!$E$37="Non-endemic",0,IF(COUNTRY_INFO!$H13=1,COUNTRY_INFO!F13,0))) -> 0 | F13: =IF(INTRO!$E$39<>"Non-endemic", 0, IF(INTRO!$E$37="Non-endemic",0,IF(COUNTRY_INFO!$H13=1,COUNTRY_INFO!G13,0))) -> 0 | G13: 0 | H13: =IF(INTRO!$E$39="Non-endemic",IF(INTRO!$E$37="Non-endemic","Not required",COUNTRY_INFO!V13),"Treat with IVM") -> 0 | I13: 0 | J13: 0 | K13: 0 | L13: 0
A14: =IF(INTRO!$E$39<>"Non-endemic", " ", IF(INTRO!$E$37="Non-endemic"," ", IF(COUNTRY_INFO!A14=0," ",COUNTRY_INFO!A14))) -> Sao Tome & Principe | B14: =IF(INTRO!$E$39<>"Non-endemic", " ", IF(INTRO!$E$37="Non-endemic"," ", IF(COUNTRY_INFO!B14=0," ",COUNTRY_INFO!B14))) -> Sao Tome | C14: =IF(INTRO!$E$39<>"Non-endemic", " ", IF(INTRO!$E$37="Non-endemic"," ", IF(COUNTRY_INFO!C14=0," ",COUNTRY_INFO!C14))) -> Lemba | D14: =IF(INTRO!$E$39<>"Non-endemic", 0, IF(INTRO!$E$37="Non-endemic",0,IF(COUNTRY_INFO!$H14=1,COUNTRY_INFO!E14,0))) -> 0 | E14: =IF(INTRO!$E$39<>"Non-endemic", 0, IF(INTRO!$E$37="Non-endemic",0,IF(COUNTRY_INFO!$H14=1,COUNTRY_INFO!F14,0))) -> 0 | F14: =IF(INTRO!$E$39<>"Non-endemic", 0, IF(INTRO!$E$37="Non-endemic",0,IF(COUNTRY_INFO!$H14=1,COUNTRY_INFO!G14,0))) -> 0 | G14: 0 | H14: =IF(INTRO!$E$39="Non-endemic",IF(INTRO!$E$37="Non-endemic","Not required",COUNTRY_INFO!V14),"Treat with IVM") -> 0 | I14: 0 | J14: 0 | K14: 0 | L14: 0
A15: =IF(INTRO!$E$39<>"Non-endemic", " ", IF(INTRO!$E$37="Non-endemic"," ", IF(COUNTRY_INFO!A15=0," ",COUNTRY_INFO!A15))) -> Sao Tome & Principe | B15: =IF(INTRO!$E$39<>"Non-endemic", " ", IF(INTRO!$E$37="Non-endemic"," ", IF(COUNTRY_INFO!B15=0," ",COUNTRY_INFO!B15))) -> Sao Tome | C15: =IF(INTRO!$E$39<>"Non-endemic", " ", IF(INTRO!$E$37="Non-endemic"," ", IF(COUNTRY_INFO!C15=0," ",COUNTRY_INFO!C15))) -> Cauè | D15: =IF(INTRO!$E$39<>"Non-endemic", 0, IF(INTRO!$E$37="Non-endemic",0,IF(COUNTRY_INFO!$H15=1,COUNTRY_INFO!E15,0))) -> 0 | E15: =IF(INTRO!$E$39<>"Non-endemic", 0, IF(INTRO!$E$37="Non-endemic",0,IF(COUNTRY_INFO!$H15=1,COUNTRY_INFO!F15,0))) -> 0 | F15: =IF(INTRO!$E$39<>"Non-endemic", 0, IF(INTRO!$E$37="Non-endemic",0,IF(COUNTRY_INFO!$H15=1,COUNTRY_INFO!G15,0))) -> 0 | G15: 0 | H15: =IF(INTRO!$E$39="Non-endemic",IF(INTRO!$E$37="Non-endemic","Not required",COUNTRY_INFO!V15),"Treat with IVM") -> 0 | I15: 0 | J15: 0 | K15: 0 | L15: 0
A16: =IF(INTRO!$E$39<>"Non-endemic", " ", IF(INTRO!$E$37="Non-endemic"," ", IF(COUNTRY_INFO!A16=0," ",COUNTRY_INFO!A16))) -> Sao Tome & Principe | B16: =IF(INTRO!$E$39<>"Non-endemic", " ", IF(INTRO!$E$37="Non-endemic"," ", IF(COUNTRY_INFO!B16=0," ",COUNTRY_INFO!B16))) -> Principe | C16: =IF(INTRO!$E$39<>"Non-endemic", " ", IF(INTRO!$E$37="Non-endemic"," ", IF(COUNTRY_INFO!C16=0," ",COUNTRY_INFO!C16))) -> Píncipe | D16: =IF(INTRO!$E$39<>"Non-endemic", 0, IF(INTRO!$E$37="Non-endemic",0,IF(COUNTRY_INFO!$H16=1,COUNTRY_INFO!E16,0))) -> 0 | E16: =IF(INTRO!$E$39<>"Non-endemic", 0, IF(INTRO!$E$37="Non-endemic",0,IF(COUNTRY_INFO!$H16=1,COUNTRY_INFO!F16,0))) -> 0 | F16: =IF(INTRO!$E$39<>"Non-endemic", 0, IF(INTRO!$E$37="Non-endemic",0,IF(COUNTRY_INFO!$H16=1,COUNTRY_INFO!G16,0))) -> 0 | G16: 0 | H16: =IF(INTRO!$E$39="Non-endemic",IF(INTRO!$E$37="Non-endemic","Not required",COUNTRY_INFO!V16),"Treat with IVM") -> 0 | I16: 0 | J16: 0 | K16: 0 | L16: 0

Sheet ALB_MBD
A1: Albendazole (ALB) and Mebendazole (MBD) | G1: Select medicine for treatment of STH for each age group
A2: Administrative structure, eligible population by age group, treatment plan and information about tablets | G2: ALB | I2: ALB | J2: ALB
A4: TOTAL | F4: =SUBTOTAL(9,F$10:F$1010) -> 0 | H4: =SUBTOTAL(9,H$10:H$1010) -> 49046 | I4: 119540 | K4: 109406 | L4: 277992 | M4: 0 | N4: 0 | O4: 0 | P4: 277992 | Q4: 0 | R4: 277992 | S4: 0 | T4: 0 | U4: 0
A6: Country administrative structure | D6: Treatment plan | F6: People targeted by PELF with ALB | G6: Target population for STH | M6: Albendazole (ALB) | S6: Mebendazole (MBD)
A7: Country | B7: Province/State | C7: District | D7: LF | E7: STH | G7: PreSAC | I7: SAC | J7: WRA | L7: Total | M7: Total required | N7: Remaining in stock (LF) | O7: Tablets to be procured (LF) | P7: Total required | Q7: Remaining in stock (STH) | R7: Tablets to be procured (STH) | S7: Total required | T7: Remaining in stock | U7: Tablets to be procured
G8: Rounds | H8: People | I8: People | J8: Rounds | K8: People
A10: =IF(AND(INTRO!$E$37="Non-endemic",INTRO!$E$41="Non-endemic")," ",IF(COUNTRY_INFO!A10=0," ",COUNTRY_INFO!A10)) -> Sao Tome & Principe | B10: =IF(AND(INTRO!$E$37="Non-endemic",INTRO!$E$41="Non-endemic")," ",IF(COUNTRY_INFO!B10=0," ",COUNTRY_INFO!B10)) -> Sao Tome | C10: =IF(AND(INTRO!$E$37="Non-endemic",INTRO!$E$41="Non-endemic")," ",IF(COUNTRY_INFO!C10=0," ",COUNTRY_INFO!C10)) -> Agua Grande | D10: =IF(AND(INTRO!$E$37="Non-endemic",INTRO!$E$41="Non-endemic"),0,COUNTRY_INFO!V10) -> 0 | E10: =IF(AND(INTRO!$E$37="Non-endemic",INTRO!$E$41="Non-endemic"),0,COUNTRY_INFO!X10) -> 2 | F10: =IF(INTRO!$E$39="Non-endemic",IF($D10=1,DEC!I10,0),IF($D10=1,IVM!G10,0)) -> 0 | G10: 2 | H10: =IF(OR(COUNTRY_INFO!N10="Unknown",COUNTRY_INFO!N10="Surveillance",COUNTRY_INFO!N10="Not required",COUNTRY_INFO!N10=0),0,IF(INTRO!$E$39="Non-endemic",IF(AND($E10<>0,$G10=""),IF($F10=0,COUNTRY_INFO!N10*$E10,COUNTRY_INFO!N10*($E10-$D10)),IF(AND($E10<>0,$G10<>0),IF($F10=0,COUNTRY_INFO!N10*$G10,COUNTRY_INFO!N10*($G10-$D10)),0)),IF($G10="",COUNTRY_INFO!N10*$E10,COUNTRY_INFO!N10*$G10))) -> 18824 | I10: =IF(OR(COUNTRY_INFO!O10="Unknown",COUNTRY_INFO!O10="Surveillance",COUNTRY_INFO!O10="Not required",COUNTRY_INFO!O10=0),0,IF($E10<>0, IF($F10=0,COUNTRY_INFO!O10*$E10,COUNTRY_INFO!O10*($E10-$D10)),COUNTRY_INFO!O10*$E10)) -> 45880 | J10: 2 | K10: =IF(OR(COUNTRY_INFO!P10="Unknown",COUNTRY_INFO!P10="Surveillance",COUNTRY_INFO!P10="Not required",COUNTRY_INFO!P10=0),0,IF(AND($E10<>0,$J10=""),IF($F10=0,COUNTRY_INFO!P10*$E10,COUNTRY_INFO!P10*($E10-$D10)), IF(AND($E10<>0,$J10<>0),IF($F10=0,COUNTRY_INFO!P10*$J10,COUNTRY_INFO!P10*($J10-$D10)), COUNTRY_INFO!P10*$J10))) -> 41990 | L10: =ROUND($H10,0)+ROUND($I10,0)+ROUND($K10,0) -> 106694 | M10: =$F10 -> 0 | O10: =IF($M10>$N10, $M10-$N10,0) -> 0 | P10: =ROUND((IF($G$2="ALB",$H10,0)+IF($I$2="ALB",$I10,0)+IF($J$2="ALB",$K10,0)),0) -> 106694 | R10: =IF($P10>$Q10,$P10-$Q10,0) -> 106694 | S10: =ROUND((IF($G$2="MBD",$H10,0)+IF($I$2="MBD",$I10,0)+IF($J$2="MBD",$K10,0)),0) -> 0 | U10: =IF($S10>$T10,$S10-$T10,0) -> 0
A11: =IF(AND(INTRO!$E$37="Non-endemic",INTRO!$E$41="Non-endemic")," ",IF(COUNTRY_INFO!A11=0," ",COUNTRY_INFO!A11)) -> Sao Tome & Principe | B11: =IF(AND(INTRO!$E$37="Non-endemic",INTRO!$E$41="Non-endemic")," ",IF(COUNTRY_INFO!B11=0," ",COUNTRY_INFO!B11)) -> Sao Tome | C11: =IF(AND(INTRO!$E$37="Non-endemic",INTRO!$E$41="Non-endemic")," ",IF(COUNTRY_INFO!C11=0," ",COUNTRY_INFO!C11)) -> Me-zochi | D11: =IF(AND(INTRO!$E$37="Non-endemic",INTRO!$E$41="Non-endemic"),0,COUNTRY_INFO!V11) -> 0 | E11: =IF(AND(INTRO!$E$37="Non-endemic",INTRO!$E$41="Non-endemic"),0,COUNTRY_INFO!X11) -> 2 | F11: =IF(INTRO!$E$39="Non-endemic",IF($D11=1,DEC!I11,0),IF($D11=1,IVM!G11,0)) -> 0 | G11: 2 | H11: =IF(OR(COUNTRY_INFO!N11="Unknown",COUNTRY_INFO!N11="Surveillance",COUNTRY_INFO!N11="Not required",COUNTRY_INFO!N11=0),0,IF(INTRO!$E$39="Non-endemic",IF(AND($E11<>0,$G11=""),IF($F11=0,COUNTRY_INFO!N11*$E11,COUNTRY_INFO!N11*($E11-$D11)),IF(AND($E11<>0,$G11<>0),IF($F11=0,COUNTRY_INFO!N11*$G11,COUNTRY_INFO!N11*($G11-$D11)),0)),IF($G11="",COUNTRY_INFO!N11*$E11,COUNTRY_INFO!N11*$G11))) -> 12332 | I11: =IF(OR(COUNTRY_INFO!O11="Unknown",COUNTRY_INFO!O11="Surveillance",COUNTRY_INFO!O11="Not required",COUNTRY_INFO!O11=0),0,IF($E11<>0, IF($F11=0,COUNTRY_INFO!O11*$E11,COUNTRY_INFO!O11*($E11-$D11)),COUNTRY_INFO!O11*$E11)) -> 30058 | J11: 2 | K11: =IF(OR(COUNTRY_INFO!P11="Unknown",COUNTRY_INFO!P11="Surveillance",COUNTRY_INFO!P11="Not required",COUNTRY_INFO!P11=0),0,IF(AND($E11<>0,$J11=""),IF($F11=0,COUNTRY_INFO!P11*$E11,COUNTRY_INFO!P11*($E11-$D11)), IF(AND($E11<>0,$J11<>0),IF($F11=0,COUNTRY_INFO!P11*$J11,COUNTRY_INFO!P11*($J11-$D11)), COUNTRY_INFO!P11*$J11))) -> 27510 | L11: 69900 | M11: 0 | O11: 0 | P11: 69900 | R11: 69900 | S11: 0 | U11: 0
A12: =IF(AND(INTRO!$E$37="Non-endemic",INTRO!$E$41="Non-endemic")," ",IF(COUNTRY_INFO!A12=0," ",COUNTRY_INFO!A12)) -> Sao Tome & Principe | B12: =IF(AND(INTRO!$E$37="Non-endemic",INTRO!$E$41="Non-endemic")," ",IF(COUNTRY_INFO!B12=0," ",COUNTRY_INFO!B12)) -> Sao Tome | C12: =IF(AND(INTRO!$E$37="Non-endemic",INTRO!$E$41="Non-endemic")," ",IF(COUNTRY_INFO!C12=0," ",COUNTRY_INFO!C12)) -> Lobata | D12: =IF(AND(INTRO!$E$37="Non-endemic",INTRO!$E$41="Non-endemic"),0,COUNTRY_INFO!V12) -> 0 | E12: =IF(AND(INTRO!$E$37="Non-endemic",INTRO!$E$41="Non-endemic"),0,COUNTRY_INFO!X12) -> 2 | F12: =IF(INTRO!$E$39="Non-endemic",IF($D12=1,DEC!I12,0),IF($D12=1,IVM!G12,0)) -> 0 | G12: 2 | H12: =IF(OR(COUNTRY_INFO!N12="Unknown",COUNTRY_INFO!N12="Surveillance",COUNTRY_INFO!N12="Not required",COUNTRY_INFO!N12=0),0,IF(INTRO!$E$39="Non-endemic",IF(AND($E12<>0,$G12=""),IF($F12=0,COUNTRY_INFO!N12*$E12,COUNTRY_INFO!N12*($E12-$D12)),IF(AND($E12<>0,$G12<>0),IF($F12=0,COUNTRY_INFO!N12*$G12,COUNTRY_INFO!N12*($G12-$D12)),0)),IF($G12="",COUNTRY_INFO!N12*$E12,COUNTRY_INFO!N12*$G12))) -> 5444 | I12: =IF(OR(COUNTRY_INFO!O12="Unknown",COUNTRY_INFO!O12="Surveillance",COUNTRY_INFO!O12="Not required",COUNTRY_INFO!O12=0),0,IF($E12<>0, IF($F12=0,COUNTRY_INFO!O12*$E12,COUNTRY_INFO!O12*($E12-$D12)),COUNTRY_INFO!O12*$E12)) -> 13270 | J12: 2 | K12: =IF(OR(COUNTRY_INFO!P12="Unknown",COUNTRY_INFO!P12="Surveillance",COUNTRY_INFO!P12="Not required",COUNTRY_INFO!P12=0),0,IF(AND($E12<>0,$J12=""),IF($F12=0,COUNTRY_INFO!P12*$E12,COUNTRY_INFO!P12*($E12-$D12)), IF(AND($E12<>0,$J12<>0),IF($F12=0,COUNTRY_INFO!P12*$J12,COUNTRY_INFO!P12*($J12-$D12)), COUNTRY_INFO!P12*$J12))) -> 12146 | L12: 30860 | M12: 0 | O12: 0 | P12: 30860 | R12: 30860 | S12: 0 | U12: 0
A13: =IF(AND(INTRO!$E$37="Non-endemic",INTRO!$E$41="Non-endemic")," ",IF(COUNTRY_INFO!A13=0," ",COUNTRY_INFO!A13)) -> Sao Tome & Principe | B13: =IF(AND(INTRO!$E$37="Non-endemic",INTRO!$E$41="Non-endemic")," ",IF(COUNTRY_INFO!B13=0," ",COUNTRY_INFO!B13)) -> Sao Tome | C13: =IF(AND(INTRO!$E$37="Non-endemic",INTRO!$E$41="Non-endemic")," ",IF(COUNTRY_INFO!C13=0," ",COUNTRY_INFO!C13)) -> Cantagalo | D13: =IF(AND(INTRO!$E$37="Non-endemic",INTRO!$E$41="Non-endemic"),0,COUNTRY_INFO!V13) -> 0 | E13: =IF(AND(INTRO!$E$37="Non-endemic",INTRO!$E$41="Non-endemic"),0,COUNTRY_INFO!X13) -> 2 | F13: =IF(INTRO!$E$39="Non-endemic",IF($D13=1,DEC!I13,0),IF($D13=1,IVM!G13,0)) -> 0 | G13: 2 | H13: =IF(OR(COUNTRY_INFO!N13="Unknown",COUNTRY_INFO!N13="Surveillance",COUNTRY_INFO!N13="Not required",COUNTRY_INFO!N13=0),0,IF(INTRO!$E$39="Non-endemic",IF(AND($E13<>0,$G13=""),IF($F13=0,COUNTRY_INFO!N13*$E13,COUNTRY_INFO!N13*($E13-$D13)),IF(AND($E13<>0,$G13<>0),IF($F13=0,COUNTRY_INFO!N13*$G13,COUNTRY_INFO!N13*($G13-$D13)),0)),IF($G13="",COUNTRY_INFO!N13*$E13,COUNTRY_INFO!N13*$G13))) -> 4704 | I13: =IF(OR(COUNTRY_INFO!O13="Unknown",COUNTRY_INFO!O13="Surveillance",COUNTRY_INFO!O13="Not required",COUNTRY_INFO!O13=0),0,IF($E13<>0, IF($F13=0,COUNTRY_INFO!O13*$E13,COUNTRY_INFO!O13*($E13-$D13)),COUNTRY_INFO!O13*$E13)) -> 11466 | J13: 2 | K13: =IF(OR(COUNTRY_INFO!P13="Unknown",COUNTRY_INFO!P13="Surveillance",COUNTRY_INFO!P13="Not required",COUNTRY_INFO!P13=0),0,IF(AND($E13<>0,$J13=""),IF($F13=0,COUNTRY_INFO!P13*$E13,COUNTRY_INFO!P13*($E13-$D13)), IF(AND($E13<>0,$J13<>0),IF($F13=0,COUNTRY_INFO!P13*$J13,COUNTRY_INFO!P13*($J13-$D13)), COUNTRY_INFO!P13*$J13))) -> 10494 | L13: 26664 | M13: 0 | O13: 0 | P13: 26664 | R13: 26664 | S13: 0 | U13: 0
A14: =IF(AND(INTRO!$E$37="Non-endemic",INTRO!$E$41="Non-endemic")," ",IF(COUNTRY_INFO!A14=0," ",COUNTRY_INFO!A14)) -> Sao Tome & Principe | B14: =IF(AND(INTRO!$E$37="Non-endemic",INTRO!$E$41="Non-endemic")," ",IF(COUNTRY_INFO!B14=0," ",COUNTRY_INFO!B14)) -> Sao Tome | C14: =IF(AND(INTRO!$E$37="Non-endemic",INTRO!$E$41="Non-endemic")," ",IF(COUNTRY_INFO!C14=0," ",COUNTRY_INFO!C14)) -> Lemba | D14: =IF(AND(INTRO!$E$37="Non-endemic",INTRO!$E$41="Non-endemic"),0,COUNTRY_INFO!V14) -> 0 | E14: =IF(AND(INTRO!$E$37="Non-endemic",INTRO!$E$41="Non-endemic"),0,COUNTRY_INFO!X14) -> 2 | F14: =IF(INTRO!$E$39="Non-endemic",IF($D14=1,DEC!I14,0),IF($D14=1,IVM!G14,0)) -> 0 | G14: 2 | H14: =IF(OR(COUNTRY_INFO!N14="Unknown",COUNTRY_INFO!N14="Surveillance",COUNTRY_INFO!N14="Not required",COUNTRY_INFO!N14=0),0,IF(INTRO!$E$39="Non-endemic",IF(AND($E14<>0,$G14=""),IF($F14=0,COUNTRY_INFO!N14*$E14,COUNTRY_INFO!N14*($E14-$D14)),IF(AND($E14<>0,$G14<>0),IF($F14=0,COUNTRY_INFO!N14*$G14,COUNTRY_INFO!N14*($G14-$D14)),0)),IF($G14="",COUNTRY_INFO!N14*$E14,COUNTRY_INFO!N14*$G14))) -> 3940 | I14: =IF(OR(COUNTRY_INFO!O14="Unknown",COUNTRY_INFO!O14="Surveillance",COUNTRY_INFO!O14="Not required",COUNTRY_INFO!O14=0),0,IF($E14<>0, IF($F14=0,COUNTRY_INFO!O14*$E14,COUNTRY_INFO!O14*($E14-$D14)),COUNTRY_INFO!O14*$E14)) -> 9602 | J14: 2 | K14: =IF(OR(COUNTRY_INFO!P14="Unknown",COUNTRY_INFO!P14="Surveillance",COUNTRY_INFO!P14="Not required",COUNTRY_INFO!P14=0),0,IF(AND($E14<>0,$J14=""),IF($F14=0,COUNTRY_INFO!P14*$E14,COUNTRY_INFO!P14*($E14-$D14)), IF(AND($E14<>0,$J14<>0),IF($F14=0,COUNTRY_INFO!P14*$J14,COUNTRY_INFO!P14*($J14-$D14)), COUNTRY_INFO!P14*$J14))) -> 8788 | L14: 22330 | M14: 0 | O14: 0 | P14: 22330 | R14: 22330 | S14: 0 | U14: 0
A15: =IF(AND(INTRO!$E$37="Non-endemic",INTRO!$E$41="Non-endemic")," ",IF(COUNTRY_INFO!A15=0," ",COUNTRY_INFO!A15)) -> Sao Tome & Principe | B15: =IF(AND(INTRO!$E$37="Non-endemic",INTRO!$E$41="Non-endemic")," ",IF(COUNTRY_INFO!B15=0," ",COUNTRY_INFO!B15)) -> Sao Tome | C15: =IF(AND(INTRO!$E$37="Non-endemic",INTRO!$E$41="Non-endemic")," ",IF(COUNTRY_INFO!C15=0," ",COUNTRY_INFO!C15)) -> Cauè | D15: =IF(AND(INTRO!$E$37="Non-endemic",INTRO!$E$41="Non-endemic"),0,COUNTRY_INFO!V15) -> 0 | E15: =IF(AND(INTRO!$E$37="Non-endemic",INTRO!$E$41="Non-endemic"),0,COUNTRY_INFO!X15) -> 2 | F15: =IF(INTRO!$E$39="Non-endemic",IF($D15=1,DEC!I15,0),IF($D15=1,IVM!G15,0)) -> 0 | G15: 2 | H15: =IF(OR(COUNTRY_INFO!N15="Unknown",COUNTRY_INFO!N15="Surveillance",COUNTRY_INFO!N15="Not required",COUNTRY_INFO!N15=0),0,IF(INTRO!$E$39="Non-endemic",IF(AND($E15<>0,$G15=""),IF($F15=0,COUNTRY_INFO!N15*$E15,COUNTRY_INFO!N15*($E15-$D15)),IF(AND($E15<>0,$G15<>0),IF($F15=0,COUNTRY_INFO!N15*$G15,COUNTRY_INFO!N15*($G15-$D15)),0)),IF($G15="",COUNTRY_INFO!N15*$E15,COUNTRY_INFO!N15*$G15))) -> 1756 | I15: =IF(OR(COUNTRY_INFO!O15="Unknown",COUNTRY_INFO!O15="Surveillance",COUNTRY_INFO!O15="Not required",COUNTRY_INFO!O15=0),0,IF($E15<>0, IF($F15=0,COUNTRY_INFO!O15*$E15,COUNTRY_INFO!O15*($E15-$D15)),COUNTRY_INFO!O15*$E15)) -> 4280 | J15: 2 | K15: =IF(OR(COUNTRY_INFO!P15="Unknown",COUNTRY_INFO!P15="Surveillance",COUNTRY_INFO!P15="Not required",COUNTRY_INFO!P15=0),0,IF(AND($E15<>0,$J15=""),IF($F15=0,COUNTRY_INFO!P15*$E15,COUNTRY_INFO!P15*($E15-$D15)), IF(AND($E15<>0,$J15<>0),IF($F15=0,COUNTRY_INFO!P15*$J15,COUNTRY_INFO!P15*($J15-$D15)), COUNTRY_INFO!P15*$J15))) -> 3916 | L15: 9952 | M15: 0 | O15: 0 | P15: 9952 | R15: 9952 | S15: 0 | U15: 0
A16: =IF(AND(INTRO!$E$37="Non-endemic",INTRO!$E$41="Non-endemic")," ",IF(COUNTRY_INFO!A16=0," ",COUNTRY_INFO!A16)) -> Sao Tome & Principe | B16: =IF(AND(INTRO!$E$37="Non-endemic",INTRO!$E$41="Non-endemic")," ",IF(COUNTRY_INFO!B16=0," ",COUNTRY_INFO!B16)) -> Principe | C16: =IF(AND(INTRO!$E$37="Non-endemic",INTRO!$E$41="Non-endemic")," ",IF(COUNTRY_INFO!C16=0," ",COUNTRY_INFO!C16)) -> Píncipe | D16: =IF(AND(INTRO!$E$37="Non-endemic",INTRO!$E$41="Non-endemic"),0,COUNTRY_INFO!V16) -> 0 | E16: =IF(AND(INTRO!$E$37="Non-endemic",INTRO!$E$41="Non-endemic"),0,COUNTRY_INFO!X16) -> 2 | F16: =IF(INTRO!$E$39="Non-endemic",IF($D16=1,DEC!I16,0),IF($D16=1,IVM!G16,0)) -> 0 | G16: 2 | H16: =IF(OR(COUNTRY_INFO!N16="Unknown",COUNTRY_INFO!N16="Surveillance",COUNTRY_INFO!N16="Not required",COUNTRY_INFO!N16=0),0,IF(INTRO!$E$39="Non-endemic",IF(AND($E16<>0,$G16=""),IF($F16=0,COUNTRY_INFO!N16*$E16,COUNTRY_INFO!N16*($E16-$D16)),IF(AND($E16<>0,$G16<>0),IF($F16=0,COUNTRY_INFO!N16*$G16,COUNTRY_INFO!N16*($G16-$D16)),0)),IF($G16="",COUNTRY_INFO!N16*$E16,COUNTRY_INFO!N16*$G16))) -> 2046 | I16: =IF(OR(COUNTRY_INFO!O16="Unknown",COUNTRY_INFO!O16="Surveillance",COUNTRY_INFO!O16="Not required",COUNTRY_INFO!O16=0),0,IF($E16<>0, IF($F16=0,COUNTRY_INFO!O16*$E16,COUNTRY_INFO!O16*($E16-$D16)),COUNTRY_INFO!O16*$E16)) -> 4984 | J16: 2 | K16: =IF(OR(COUNTRY_INFO!P16="Unknown",COUNTRY_INFO!P16="Surveillance",COUNTRY_INFO!P16="Not required",COUNTRY_INFO!P16=0),0,IF(AND($E16<>0,$J16=""),IF($F16=0,COUNTRY_INFO!P16*$E16,COUNTRY_INFO!P16*($E16-$D16)), IF(AND($E16<>0,$J16<>0),IF($F16=0,COUNTRY_INFO!P16*$J16,COUNTRY_INFO!P16*($J16-$D16)), COUNTRY_INFO!P16*$J16))) -> 4562 | L16: 11592 | M16: 0 | O16: 0 | P16: 11592 | R16: 11592 | S16: 0 | U16: 0

Sheet PZQ
A1: Praziquantel (PZQ)
A2: Administrative structure, eligible population by age group, treatment plan and information about tablets
A4: TOTAL | E4: =SUBTOTAL(9,E$10:E$1010) -> 11684 | F4: 37969 | G4: 86171 | H4: 135824 | J4: 0 | M4: =SUBTOTAL(9,M$10:M$1010) -> 0 | N4: 75938 | O4: 258513 | P4: 334451 | Q4: 0 | R4: 334451
A6: Country administrative structure | D6: Treatment plan SCH | E6: Target population for SCH | I6: Hot spots | K6: Previous year MDA | M6: Praziquantel (PZQ)
A7: Country | B7: Province/State | C7: District | E7: PreSAC | F7: SAC | G7: Adults | H7: Total | I7: Planned | J7: Population | K7: Rounds | L7: Age groups | M7: PreSAC | N7: SAC | O7: Adults | P7: Total required | Q7: Remaining in stock | R7: Tablets to be procured
A10: =IF(INTRO!$E$43="Non-endemic"," ", IF(COUNTRY_INFO!A10=0," ",COUNTRY_INFO!A10)) -> Sao Tome & Principe | B10: =IF(INTRO!$E$43="Non-endemic"," ", IF(COUNTRY_INFO!B10=0," ",COUNTRY_INFO!B10)) -> Sao Tome | C10: =IF(INTRO!$E$43="Non-endemic"," ", IF(COUNTRY_INFO!C10=0," ",COUNTRY_INFO!C10)) -> Agua Grande | D10: =IF(INTRO!$E$43="Non-endemic", "Not required", COUNTRY_INFO!Y10) -> 1 | E10: =IF(OR(COUNTRY_INFO!R10="Unknown",COUNTRY_INFO!R10="Surveillance",COUNTRY_INFO!R10="Not required",COUNTRY_INFO!R10=0),0,IF($D10<>0, COUNTRY_INFO!R10,0)) -> 7059 | F10: =IF(OR(COUNTRY_INFO!S10="Unknown",COUNTRY_INFO!S10="Surveillance",COUNTRY_INFO!S10="Not required",COUNTRY_INFO!S10=0),0,IF($D10<>0, COUNTRY_INFO!S10,0)) -> 22940 | G10: =IF(OR(COUNTRY_INFO!T10="Unknown",COUNTRY_INFO!T10="Surveillance",COUNTRY_INFO!T10="Not required",COUNTRY_INFO!T10=0),0,IF($D10<>0, COUNTRY_INFO!T10,0)) -> 52062 | H10: =SUM(E10:G10) -> 82061 | N10: =IF($I10<>"Yes",$F10*2,($F10+ROUND(J10*$F10/SUM(COUNTRY_INFO!$E10:$G10),0))*2) -> 45880 | O10: =IF($I10<>"Yes",$G10*3,($G10+ROUND(J10*$G10/SUM(COUNTRY_INFO!$E10:$G10),0))*3) -> 156186 | P10: =SUM(M10:O10) -> 202066 | R10: =IF($P10>$Q10,P10-Q10,0) -> 202066
A11: =IF(INTRO!$E$43="Non-endemic"," ", IF(COUNTRY_INFO!A11=0," ",COUNTRY_INFO!A11)) -> Sao Tome & Principe | B11: =IF(INTRO!$E$43="Non-endemic"," ", IF(COUNTRY_INFO!B11=0," ",COUNTRY_INFO!B11)) -> Sao Tome | C11: =IF(INTRO!$E$43="Non-endemic"," ", IF(COUNTRY_INFO!C11=0," ",COUNTRY_INFO!C11)) -> Me-zochi | D11: =IF(INTRO!$E$43="Non-endemic", "Not required", COUNTRY_INFO!Y11) -> 1 | E11: =IF(OR(COUNTRY_INFO!R11="Unknown",COUNTRY_INFO!R11="Surveillance",COUNTRY_INFO!R11="Not required",COUNTRY_INFO!R11=0),0,IF($D11<>0, COUNTRY_INFO!R11,0)) -> 4625 | F11: =IF(OR(COUNTRY_INFO!S11="Unknown",COUNTRY_INFO!S11="Surveillance",COUNTRY_INFO!S11="Not required",COUNTRY_INFO!S11=0),0,IF($D11<>0, COUNTRY_INFO!S11,0)) -> 15029 | G11: =IF(OR(COUNTRY_INFO!T11="Unknown",COUNTRY_INFO!T11="Surveillance",COUNTRY_INFO!T11="Not required",COUNTRY_INFO!T11=0),0,IF($D11<>0, COUNTRY_INFO!T11,0)) -> 34109 | H11: =SUM(E11:G11) -> 53763 | N11: =IF($I11<>"Yes",$F11*2,($F11+ROUND(J11*$F11/SUM(COUNTRY_INFO!$E11:$G11),0))*2) -> 30058 | O11: =IF($I11<>"Yes",$G11*3,($G11+ROUND(J11*$G11/SUM(COUNTRY_INFO!$E11:$G11),0))*3) -> 102327 | P11: =SUM(M11:O11) -> 132385 | R11: =IF($P11>$Q11,P11-Q11,0) -> 132385
A12: =IF(INTRO!$E$43="Non-endemic"," ", IF(COUNTRY_INFO!A12=0," ",COUNTRY_INFO!A12)) -> Sao Tome & Principe | B12: =IF(INTRO!$E$43="Non-endemic"," ", IF(COUNTRY_INFO!B12=0," ",COUNTRY_INFO!B12)) -> Sao Tome | C12: =IF(INTRO!$E$43="Non-endemic"," ", IF(COUNTRY_INFO!C12=0," ",COUNTRY_INFO!C12)) -> Lobata | D12: =IF(INTRO!$E$43="Non-endemic", "Not required", COUNTRY_INFO!Y12) -> 0 | E12: =IF(OR(COUNTRY_INFO!R12="Unknown",COUNTRY_INFO!R12="Surveillance",COUNTRY_INFO!R12="Not required",COUNTRY_INFO!R12=0),0,IF($D12<>0, COUNTRY_INFO!R12,0)) -> 0 | F12: =IF(OR(COUNTRY_INFO!S12="Unknown",COUNTRY_INFO!S12="Surveillance",COUNTRY_INFO!S12="Not required",COUNTRY_INFO!S12=0),0,IF($D12<>0, COUNTRY_INFO!S12,0)) -> 0 | G12: =IF(OR(COUNTRY_INFO!T12="Unknown",COUNTRY_INFO!T12="Surveillance",COUNTRY_INFO!T12="Not required",COUNTRY_INFO!T12=0),0,IF($D12<>0, COUNTRY_INFO!T12,0)) -> 0 | H12: 0 | N12: =IF($I12<>"Yes",$F12*2,($F12+ROUND(J12*$F12/SUM(COUNTRY_INFO!$E12:$G12),0))*2) -> 0 | O12: =IF($I12<>"Yes",$G12*3,($G12+ROUND(J12*$G12/SUM(COUNTRY_INFO!$E12:$G12),0))*3) -> 0 | P12: 0 | R12: 0
A13: =IF(INTRO!$E$43="Non-endemic"," ", IF(COUNTRY_INFO!A13=0," ",COUNTRY_INFO!A13)) -> Sao Tome & Principe | B13: =IF(INTRO!$E$43="Non-endemic"," ", IF(COUNTRY_INFO!B13=0," ",COUNTRY_INFO!B13)) -> Sao Tome | C13: =IF(INTRO!$E$43="Non-endemic"," ", IF(COUNTRY_INFO!C13=0," ",COUNTRY_INFO!C13)) -> Cantagalo | D13: =IF(INTRO!$E$43="Non-endemic", "Not required", COUNTRY_INFO!Y13) -> 0 | E13: =IF(OR(COUNTRY_INFO!R13="Unknown",COUNTRY_INFO!R13="Surveillance",COUNTRY_INFO!R13="Not required",COUNTRY_INFO!R13=0),0,IF($D13<>0, COUNTRY_INFO!R13,0)) -> 0 | F13: =IF(OR(COUNTRY_INFO!S13="Unknown",COUNTRY_INFO!S13="Surveillance",COUNTRY_INFO!S13="Not required",COUNTRY_INFO!S13=0),0,IF($D13<>0, COUNTRY_INFO!S13,0)) -> 0 | G13: =IF(OR(COUNTRY_INFO!T13="Unknown",COUNTRY_INFO!T13="Surveillance",COUNTRY_INFO!T13="Not required",COUNTRY_INFO!T13=0),0,IF($D13<>0, COUNTRY_INFO!T13,0)) -> 0 | H13: 0 | N13: =IF($I13<>"Yes",$F13*2,($F13+ROUND(J13*$F13/SUM(COUNTRY_INFO!$E13:$G13),0))*2) -> 0 | O13: =IF($I13<>"Yes",$G13*3,($G13+ROUND(J13*$G13/SUM(COUNTRY_INFO!$E13:$G13),0))*3) -> 0 | P13: 0 | R13: 0
A14: =IF(INTRO!$E$43="Non-endemic"," ", IF(COUNTRY_INFO!A14=0," ",COUNTRY_INFO!A14)) -> Sao Tome & Principe | B14: =IF(INTRO!$E$43="Non-endemic"," ", IF(COUNTRY_INFO!B14=0," ",COUNTRY_INFO!B14)) -> Sao Tome | C14: =IF(INTRO!$E$43="Non-endemic"," ", IF(COUNTRY_INFO!C14=0," ",COUNTRY_INFO!C14)) -> Lemba | D14: =IF(INTRO!$E$43="Non-endemic", "Not required", COUNTRY_INFO!Y14) -> 0 | E14: =IF(OR(COUNTRY_INFO!R14="Unknown",COUNTRY_INFO!R14="Surveillance",COUNTRY_INFO!R14="Not required",COUNTRY_INFO!R14=0),0,IF($D14<>0, COUNTRY_INFO!R14,0)) -> 0 | F14: =IF(OR(COUNTRY_INFO!S14="Unknown",COUNTRY_INFO!S14="Surveillance",COUNTRY_INFO!S14="Not required",COUNTRY_INFO!S14=0),0,IF($D14<>0, COUNTRY_INFO!S14,0)) -> 0 | G14: =IF(OR(COUNTRY_INFO!T14="Unknown",COUNTRY_INFO!T14="Surveillance",COUNTRY_INFO!T14="Not required",COUNTRY_INFO!T14=0),0,IF($D14<>0, COUNTRY_INFO!T14,0)) -> 0 | H14: 0 | N14: =IF($I14<>"Yes",$F14*2,($F14+ROUND(J14*$F14/SUM(COUNTRY_INFO!$E14:$G14),0))*2) -> 0 | O14: =IF($I14<>"Yes",$G14*3,($G14+ROUND(J14*$G14/SUM(COUNTRY_INFO!$E14:$G14),0))*3) -> 0 | P14: 0 | R14: 0
A15: =IF(INTRO!$E$43="Non-endemic"," ", IF(COUNTRY_INFO!A15=0," ",COUNTRY_INFO!A15)) -> Sao Tome & Principe | B15: =IF(INTRO!$E$43="Non-endemic"," ", IF(COUNTRY_INFO!B15=0," ",COUNTRY_INFO!B15)) -> Sao Tome | C15: =IF(INTRO!$E$43="Non-endemic"," ", IF(COUNTRY_INFO!C15=0," ",COUNTRY_INFO!C15)) -> Cauè | D15: =IF(INTRO!$E$43="Non-endemic", "Not required", COUNTRY_INFO!Y15) -> 0 | E15: =IF(OR(COUNTRY_INFO!R15="Unknown",COUNTRY_INFO!R15="Surveillance",COUNTRY_INFO!R15="Not required",COUNTRY_INFO!R15=0),0,IF($D15<>0, COUNTRY_INFO!R15,0)) -> 0 | F15: =IF(OR(COUNTRY_INFO!S15="Unknown",COUNTRY_INFO!S15="Surveillance",COUNTRY_INFO!S15="Not required",COUNTRY_INFO!S15=0),0,IF($D15<>0, COUNTRY_INFO!S15,0)) -> 0 | G15: =IF(OR(COUNTRY_INFO!T15="Unknown",COUNTRY_INFO!T15="Surveillance",COUNTRY_INFO!T15="Not required",COUNTRY_INFO!T15=0),0,IF($D15<>0, COUNTRY_INFO!T15,0)) -> 0 | H15: 0 | N15: =IF($I15<>"Yes",$F15*2,($F15+ROUND(J15*$F15/SUM(COUNTRY_INFO!$E15:$G15),0))*2) -> 0 | O15: =IF($I15<>"Yes",$G15*3,($G15+ROUND(J15*$G15/SUM(COUNTRY_INFO!$E15:$G15),0))*3) -> 0 | P15: 0 | R15: 0
A16: =IF(INTRO!$E$43="Non-endemic"," ", IF(COUNTRY_INFO!A16=0," ",COUNTRY_INFO!A16)) -> Sao Tome & Principe | B16: =IF(INTRO!$E$43="Non-endemic"," ", IF(COUNTRY_INFO!B16=0," ",COUNTRY_INFO!B16)) -> Principe | C16: =IF(INTRO!$E$43="Non-endemic"," ", IF(COUNTRY_INFO!C16=0," ",COUNTRY_INFO!C16)) -> Píncipe | D16: =IF(INTRO!$E$43="Non-endemic", "Not required", COUNTRY_INFO!Y16) -> 0 | E16: =IF(OR(COUNTRY_INFO!R16="Unknown",COUNTRY_INFO!R16="Surveillance",COUNTRY_INFO!R16="Not required",COUNTRY_INFO!R16=0),0,IF($D16<>0, COUNTRY_INFO!R16,0)) -> 0 | F16: =IF(OR(COUNTRY_INFO!S16="Unknown",COUNTRY_INFO!S16="Surveillance",COUNTRY_INFO!S16="Not required",COUNTRY_INFO!S16=0),0,IF($D16<>0, COUNTRY_INFO!S16,0)) -> 0 | G16: =IF(OR(COUNTRY_INFO!T16="Unknown",COUNTRY_INFO!T16="Surveillance",COUNTRY_INFO!T16="Not required",COUNTRY_INFO!T16=0),0,IF($D16<>0, COUNTRY_INFO!T16,0)) -> 0 | H16: 0 | N16: =IF($I16<>"Yes",$F16*2,($F16+ROUND(J16*$F16/SUM(COUNTRY_INFO!$E16:$G16),0))*2) -> 0 | O16: =IF($I16<>"Yes",$G16*3,($G16+ROUND(J16*$G16/SUM(COUNTRY_INFO!$E16:$G16),0))*3) -> 0 | P16: 0 | R16: 0

Sheet IVM (hidden)
A1: Ivermectin (IVM)
A2: Administrative structure, eligible population by age group, treatment plan and information about tablets
A4: TOTAL | D4: =SUBTOTAL(9,D$10:D$1010) -> 0 | G4: =SUBTOTAL(9,G$10:G$1010) -> 0 | H4: 0 | I4: 0 | J4: 0 | K4: 0 | L4: 0 | M4: 0 | N4: 0
A6: Country administrative structure | D6: Population requiring treatment with IVM | E6: Treatment plan | G6: Target population | I6: Ivermectin (IVM)
A7: Country | B7: Province/State | C7: District | E7: LF | F7: Oncho | G7: LF | H7: Oncho | I7: LF only | J7: Oncho only | K7: LF+Oncho | L7: Total required | M7: Remaining in stock | N7: Tablets to be procured
A10: =IF(INTRO!$E$39="Non-endemic"," ",IF(COUNTRY_INFO!A10=0," ",COUNTRY_INFO!A10)) ->  | B10: =IF(INTRO!$E$39="Non-endemic"," ",IF(COUNTRY_INFO!B10=0," ",COUNTRY_INFO!B10)) ->  | C10: =IF(INTRO!$E$39="Non-endemic"," ",IF(COUNTRY_INFO!C10=0," ",COUNTRY_INFO!C10)) ->  | D10: =IF(INTRO!$E$39="Non-endemic",0,IF(INTRO!$E$39="Endemic but PC is not required",IF(COUNTRY_INFO!$H10=1,COUNTRY_INFO!F10+COUNTRY_INFO!G10,0),IF(COUNTRY_INFO!$H10=1,COUNTRY_INFO!F10+COUNTRY_INFO!G10,IF(COUNTRY_INFO!$I10=1,IF(COUNTRY_INFO!M10>=(COUNTRY_INFO!F10+COUNTRY_INFO!G10),COUNTRY_INFO!F10+COUNTRY_INFO!G10,COUNTRY_INFO!$M10),0)))) -> 0 | E10: =IF(AND(INTRO!$E$39="Non-endemic",INTRO!$E$37="Non-endemic"),"Not required",IF(INTRO!$E$39="Non-endemic","Treat with DEC",COUNTRY_INFO!V10)) -> Treat with DEC | F10: =IF(INTRO!$E$39<>"Non-endemic",COUNTRY_INFO!W10,"Not required") -> Not required | G10: =IF(COUNTRY_INFO!H10=1, IF($E10=1,$D10, 0),0) -> 0 | H10: =IF(COUNTRY_INFO!I10=1, IF(AND(COUNTRY_INFO!$I10=1,$F10<>0),IF(COUNTRY_INFO!M10>=(COUNTRY_INFO!F10+COUNTRY_INFO!G10),COUNTRY_INFO!F10+COUNTRY_INFO!G10,COUNTRY_INFO!$M10), 0),0) -> 0 | I10: =IF(G10<H10,0,IF($E10=1, (G10-H10)*2.8, 0)) -> 0 | J10: =IF($E10<$F10, H10*(F10-E10)*2.8, 0) -> 0 | K10: =IF(AND($E10=1, $F10<>0), H10*2.8, 0) -> 0 | L10: =SUM(I10:K10) -> 0 | N10: =IF($L10>$M10,$L10-$M10,0) -> 0
A11: =IF(INTRO!$E$39="Non-endemic"," ",IF(COUNTRY_INFO!A11=0," ",COUNTRY_INFO!A11)) ->  | B11: =IF(INTRO!$E$39="Non-endemic"," ",IF(COUNTRY_INFO!B11=0," ",COUNTRY_INFO!B11)) ->  | C11: =IF(INTRO!$E$39="Non-endemic"," ",IF(COUNTRY_INFO!C11=0," ",COUNTRY_INFO!C11)) ->  | D11: =IF(INTRO!$E$39="Non-endemic",0,IF(INTRO!$E$39="Endemic but PC is not required",IF(COUNTRY_INFO!$H11=1,COUNTRY_INFO!F11+COUNTRY_INFO!G11,0),IF(COUNTRY_INFO!$H11=1,COUNTRY_INFO!F11+COUNTRY_INFO!G11,IF(COUNTRY_INFO!$I11=1,IF(COUNTRY_INFO!M11>=(COUNTRY_INFO!F11+COUNTRY_INFO!G11),COUNTRY_INFO!F11+COUNTRY_INFO!G11,COUNTRY_INFO!$M11),0)))) -> 0 | E11: =IF(AND(INTRO!$E$39="Non-endemic",INTRO!$E$37="Non-endemic"),"Not required",IF(INTRO!$E$39="Non-endemic","Treat with DEC",COUNTRY_INFO!V11)) -> Treat with DEC | F11: =IF(INTRO!$E$39<>"Non-endemic",COUNTRY_INFO!W11,"Not required") -> Not required | G11: =IF(COUNTRY_INFO!H11=1, IF($E11=1,$D11, 0),0) -> 0 | H11: =IF(COUNTRY_INFO!I11=1, IF(AND(COUNTRY_INFO!$I11=1,$F11<>0),IF(COUNTRY_INFO!M11>=(COUNTRY_INFO!F11+COUNTRY_INFO!G11),COUNTRY_INFO!F11+COUNTRY_INFO!G11,COUNTRY_INFO!$M11), 0),0) -> 0 | I11: 0 | J11: 0 | K11: =IF(AND($E11=1, $F11<>0), H11*2.8, 0) -> 0 | L11: =SUM(I11:K11) -> 0 | N11: 0
A12: =IF(INTRO!$E$39="Non-endemic"," ",IF(COUNTRY_INFO!A12=0," ",COUNTRY_INFO!A12)) ->  | B12: =IF(INTRO!$E$39="Non-endemic"," ",IF(COUNTRY_INFO!B12=0," ",COUNTRY_INFO!B12)) ->  | C12: =IF(INTRO!$E$39="Non-endemic"," ",IF(COUNTRY_INFO!C12=0," ",COUNTRY_INFO!C12)) ->  | D12: =IF(INTRO!$E$39="Non-endemic",0,IF(INTRO!$E$39="Endemic but PC is not required",IF(COUNTRY_INFO!$H12=1,COUNTRY_INFO!F12+COUNTRY_INFO!G12,0),IF(COUNTRY_INFO!$H12=1,COUNTRY_INFO!F12+COUNTRY_INFO!G12,IF(COUNTRY_INFO!$I12=1,IF(COUNTRY_INFO!M12>=(COUNTRY_INFO!F12+COUNTRY_INFO!G12),COUNTRY_INFO!F12+COUNTRY_INFO!G12,COUNTRY_INFO!$M12),0)))) -> 0 | E12: =IF(AND(INTRO!$E$39="Non-endemic",INTRO!$E$37="Non-endemic"),"Not required",IF(INTRO!$E$39="Non-endemic","Treat with DEC",COUNTRY_INFO!V12)) -> Treat with DEC | F12: =IF(INTRO!$E$39<>"Non-endemic",COUNTRY_INFO!W12,"Not required") -> Not required | G12: =IF(COUNTRY_INFO!H12=1, IF($E12=1,$D12, 0),0) -> 0 | H12: =IF(COUNTRY_INFO!I12=1, IF(AND(COUNTRY_INFO!$I12=1,$F12<>0),IF(COUNTRY_INFO!M12>=(COUNTRY_INFO!F12+COUNTRY_INFO!G12),COUNTRY_INFO!F12+COUNTRY_INFO!G12,COUNTRY_INFO!$M12), 0),0) -> 0 | I12: 0 | J12: 0 | K12: 0 | L12: 0 | N12: 0
A13: =IF(INTRO!$E$39="Non-endemic"," ",IF(COUNTRY_INFO!A13=0," ",COUNTRY_INFO!A13)) ->  | B13: =IF(INTRO!$E$39="Non-endemic"," ",IF(COUNTRY_INFO!B13=0," ",COUNTRY_INFO!B13)) ->  | C13: =IF(INTRO!$E$39="Non-endemic"," ",IF(COUNTRY_INFO!C13=0," ",COUNTRY_INFO!C13)) ->  | D13: =IF(INTRO!$E$39="Non-endemic",0,IF(INTRO!$E$39="Endemic but PC is not required",IF(COUNTRY_INFO!$H13=1,COUNTRY_INFO!F13+COUNTRY_INFO!G13,0),IF(COUNTRY_INFO!$H13=1,COUNTRY_INFO!F13+COUNTRY_INFO!G13,IF(COUNTRY_INFO!$I13=1,IF(COUNTRY_INFO!M13>=(COUNTRY_INFO!F13+COUNTRY_INFO!G13),COUNTRY_INFO!F13+COUNTRY_INFO!G13,COUNTRY_INFO!$M13),0)))) -> 0 | E13: =IF(AND(INTRO!$E$39="Non-endemic",INTRO!$E$37="Non-endemic"),"Not required",IF(INTRO!$E$39="Non-endemic","Treat with DEC",COUNTRY_INFO!V13)) -> Treat with DEC | F13: =IF(INTRO!$E$39<>"Non-endemic",COUNTRY_INFO!W13,"Not required") -> Not required | G13: =IF(COUNTRY_INFO!H13=1, IF($E13=1,$D13, 0),0) -> 0 | H13: =IF(COUNTRY_INFO!I13=1, IF(AND(COUNTRY_INFO!$I13=1,$F13<>0),IF(COUNTRY_INFO!M13>=(COUNTRY_INFO!F13+COUNTRY_INFO!G13),COUNTRY_INFO!F13+COUNTRY_INFO!G13,COUNTRY_INFO!$M13), 0),0) -> 0 | I13: 0 | J13: 0 | K13: 0 | L13: 0 | N13: 0
A14: =IF(INTRO!$E$39="Non-endemic"," ",IF(COUNTRY_INFO!A14=0," ",COUNTRY_INFO!A14)) ->  | B14: =IF(INTRO!$E$39="Non-endemic"," ",IF(COUNTRY_INFO!B14=0," ",COUNTRY_INFO!B14)) ->  | C14: =IF(INTRO!$E$39="Non-endemic"," ",IF(COUNTRY_INFO!C14=0," ",COUNTRY_INFO!C14)) ->  | D14: =IF(INTRO!$E$39="Non-endemic",0,IF(INTRO!$E$39="Endemic but PC is not required",IF(COUNTRY_INFO!$H14=1,COUNTRY_INFO!F14+COUNTRY_INFO!G14,0),IF(COUNTRY_INFO!$H14=1,COUNTRY_INFO!F14+COUNTRY_INFO!G14,IF(COUNTRY_INFO!$I14=1,IF(COUNTRY_INFO!M14>=(COUNTRY_INFO!F14+COUNTRY_INFO!G14),COUNTRY_INFO!F14+COUNTRY_INFO!G14,COUNTRY_INFO!$M14),0)))) -> 0 | E14: =IF(AND(INTRO!$E$39="Non-endemic",INTRO!$E$37="Non-endemic"),"Not required",IF(INTRO!$E$39="Non-endemic","Treat with DEC",COUNTRY_INFO!V14)) -> Treat with DEC | F14: =IF(INTRO!$E$39<>"Non-endemic",COUNTRY_INFO!W14,"Not required") -> Not required | G14: =IF(COUNTRY_INFO!H14=1, IF($E14=1,$D14, 0),0) -> 0 | H14: =IF(COUNTRY_INFO!I14=1, IF(AND(COUNTRY_INFO!$I14=1,$F14<>0),IF(COUNTRY_INFO!M14>=(COUNTRY_INFO!F14+COUNTRY_INFO!G14),COUNTRY_INFO!F14+COUNTRY_INFO!G14,COUNTRY_INFO!$M14), 0),0) -> 0 | I14: 0 | J14: 0 | K14: 0 | L14: 0 | N14: 0
A15: =IF(INTRO!$E$39="Non-endemic"," ",IF(COUNTRY_INFO!A15=0," ",COUNTRY_INFO!A15)) ->  | B15: =IF(INTRO!$E$39="Non-endemic"," ",IF(COUNTRY_INFO!B15=0," ",COUNTRY_INFO!B15)) ->  | C15: =IF(INTRO!$E$39="Non-endemic"," ",IF(COUNTRY_INFO!C15=0," ",COUNTRY_INFO!C15)) ->  | D15: =IF(INTRO!$E$39="Non-endemic",0,IF(INTRO!$E$39="Endemic but PC is not required",IF(COUNTRY_INFO!$H15=1,COUNTRY_INFO!F15+COUNTRY_INFO!G15,0),IF(COUNTRY_INFO!$H15=1,COUNTRY_INFO!F15+COUNTRY_INFO!G15,IF(COUNTRY_INFO!$I15=1,IF(COUNTRY_INFO!M15>=(COUNTRY_INFO!F15+COUNTRY_INFO!G15),COUNTRY_INFO!F15+COUNTRY_INFO!G15,COUNTRY_INFO!$M15),0)))) -> 0 | E15: =IF(AND(INTRO!$E$39="Non-endemic",INTRO!$E$37="Non-endemic"),"Not required",IF(INTRO!$E$39="Non-endemic","Treat with DEC",COUNTRY_INFO!V15)) -> Treat with DEC | F15: =IF(INTRO!$E$39<>"Non-endemic",COUNTRY_INFO!W15,"Not required") -> Not required | G15: =IF(COUNTRY_INFO!H15=1, IF($E15=1,$D15, 0),0) -> 0 | H15: =IF(COUNTRY_INFO!I15=1, IF(AND(COUNTRY_INFO!$I15=1,$F15<>0),IF(COUNTRY_INFO!M15>=(COUNTRY_INFO!F15+COUNTRY_INFO!G15),COUNTRY_INFO!F15+COUNTRY_INFO!G15,COUNTRY_INFO!$M15), 0),0) -> 0 | I15: 0 | J15: 0 | K15: 0 | L15: 0 | N15: 0
A16: =IF(INTRO!$E$39="Non-endemic"," ",IF(COUNTRY_INFO!A16=0," ",COUNTRY_INFO!A16)) ->  | B16: =IF(INTRO!$E$39="Non-endemic"," ",IF(COUNTRY_INFO!B16=0," ",COUNTRY_INFO!B16)) ->  | C16: =IF(INTRO!$E$39="Non-endemic"," ",IF(COUNTRY_INFO!C16=0," ",COUNTRY_INFO!C16)) ->  | D16: =IF(INTRO!$E$39="Non-endemic",0,IF(INTRO!$E$39="Endemic but PC is not required",IF(COUNTRY_INFO!$H16=1,COUNTRY_INFO!F16+COUNTRY_INFO!G16,0),IF(COUNTRY_INFO!$H16=1,COUNTRY_INFO!F16+COUNTRY_INFO!G16,IF(COUNTRY_INFO!$I16=1,IF(COUNTRY_INFO!M16>=(COUNTRY_INFO!F16+COUNTRY_INFO!G16),COUNTRY_INFO!F16+COUNTRY_INFO!G16,COUNTRY_INFO!$M16),0)))) -> 0 | E16: =IF(AND(INTRO!$E$39="Non-endemic",INTRO!$E$37="Non-endemic"),"Not required",IF(INTRO!$E$39="Non-endemic","Treat with DEC",COUNTRY_INFO!V16)) -> Treat with DEC | F16: =IF(INTRO!$E$39<>"Non-endemic",COUNTRY_INFO!W16,"Not required") -> Not required | G16: =IF(COUNTRY_INFO!H16=1, IF($E16=1,$D16, 0),0) -> 0 | H16: =IF(COUNTRY_INFO!I16=1, IF(AND(COUNTRY_INFO!$I16=1,$F16<>0),IF(COUNTRY_INFO!M16>=(COUNTRY_INFO!F16+COUNTRY_INFO!G16),COUNTRY_INFO!F16+COUNTRY_INFO!G16,COUNTRY_INFO!$M16), 0),0) -> 0 | I16: 0 | J16: 0 | K16: 0 | L16: 0 | N16: 0

Sheet IVM+
A1: Ivermectin (IVM) for IDA therapy
A2: Administrative structure, eligible population by age group, treatment plan and information about tablets
A4: TOTAL | E4: =SUBTOTAL(9,E$10:E$1010) -> 0 | F4: 0 | G4: 0 | H4: 0
A6: Country administrative structure | D6: Treatment plan | E6: Population targeted for treatment with IVM (IDA therapy) | F6: Ivermectin (IVM)
A7: Country | B7: Province/State | C7: District | D7: LF | F7: Total required | G7: Remaining in stock | H7: Tablets to be procured
A10: =IF(AND(INTRO!$E$37="Endemic",INTRO!$E$39="Non-endemic"),IF(COUNTRY_INFO!A10=0," ",COUNTRY_INFO!A10)," ") -> Sao Tome & Principe | B10: =IF(AND(INTRO!$E$37="Endemic",INTRO!$E$39="Non-endemic"),IF(COUNTRY_INFO!B10=0," ",COUNTRY_INFO!B10)," ") -> Sao Tome | C10: =IF(AND(INTRO!$E$37="Endemic",INTRO!$E$39="Non-endemic"),IF(COUNTRY_INFO!C10=0," ",COUNTRY_INFO!C10)," ") -> Agua Grande | D10: =IF(COUNTRY_INFO!Z10<>"",COUNTRY_INFO!V10,0) -> 0 | E10: =IF(AND(COUNTRY_INFO!Z10<>"",COUNTRY_INFO!$H10=1),COUNTRY_INFO!F10+COUNTRY_INFO!G10,0) -> 0 | F10: =E10*2.8 -> 0 | H10: =IF($F10>$G10,$F10-$G10,0) -> 0
A11: =IF(AND(INTRO!$E$37="Endemic",INTRO!$E$39="Non-endemic"),IF(COUNTRY_INFO!A11=0," ",COUNTRY_INFO!A11)," ") -> Sao Tome & Principe | B11: =IF(AND(INTRO!$E$37="Endemic",INTRO!$E$39="Non-endemic"),IF(COUNTRY_INFO!B11=0," ",COUNTRY_INFO!B11)," ") -> Sao Tome | C11: =IF(AND(INTRO!$E$37="Endemic",INTRO!$E$39="Non-endemic"),IF(COUNTRY_INFO!C11=0," ",COUNTRY_INFO!C11)," ") -> Me-zochi | D11: =IF(COUNTRY_INFO!Z11<>"",COUNTRY_INFO!V11,0) -> 0 | E11: =IF(AND(COUNTRY_INFO!Z11<>"",COUNTRY_INFO!$H11=1),COUNTRY_INFO!F11+COUNTRY_INFO!G11,0) -> 0 | F11: =E11*2.8 -> 0 | H11: 0
A12: =IF(AND(INTRO!$E$37="Endemic",INTRO!$E$39="Non-endemic"),IF(COUNTRY_INFO!A12=0," ",COUNTRY_INFO!A12)," ") -> Sao Tome & Principe | B12: =IF(AND(INTRO!$E$37="Endemic",INTRO!$E$39="Non-endemic"),IF(COUNTRY_INFO!B12=0," ",COUNTRY_INFO!B12)," ") -> Sao Tome | C12: =IF(AND(INTRO!$E$37="Endemic",INTRO!$E$39="Non-endemic"),IF(COUNTRY_INFO!C12=0," ",COUNTRY_INFO!C12)," ") -> Lobata | D12: =IF(COUNTRY_INFO!Z12<>"",COUNTRY_INFO!V12,0) -> 0 | E12: =IF(AND(COUNTRY_INFO!Z12<>"",COUNTRY_INFO!$H12=1),COUNTRY_INFO!F12+COUNTRY_INFO!G12,0) -> 0 | F12: 0 | H12: 0
A13: =IF(AND(INTRO!$E$37="Endemic",INTRO!$E$39="Non-endemic"),IF(COUNTRY_INFO!A13=0," ",COUNTRY_INFO!A13)," ") -> Sao Tome & Principe | B13: =IF(AND(INTRO!$E$37="Endemic",INTRO!$E$39="Non-endemic"),IF(COUNTRY_INFO!B13=0," ",COUNTRY_INFO!B13)," ") -> Sao Tome | C13: =IF(AND(INTRO!$E$37="Endemic",INTRO!$E$39="Non-endemic"),IF(COUNTRY_INFO!C13=0," ",COUNTRY_INFO!C13)," ") -> Cantagalo | D13: =IF(COUNTRY_INFO!Z13<>"",COUNTRY_INFO!V13,0) -> 0 | E13: =IF(AND(COUNTRY_INFO!Z13<>"",COUNTRY_INFO!$H13=1),COUNTRY_INFO!F13+COUNTRY_INFO!G13,0) -> 0 | F13: 0 | H13: 0
A14: =IF(AND(INTRO!$E$37="Endemic",INTRO!$E$39="Non-endemic"),IF(COUNTRY_INFO!A14=0," ",COUNTRY_INFO!A14)," ") -> Sao Tome & Principe | B14: =IF(AND(INTRO!$E$37="Endemic",INTRO!$E$39="Non-endemic"),IF(COUNTRY_INFO!B14=0," ",COUNTRY_INFO!B14)," ") -> Sao Tome | C14: =IF(AND(INTRO!$E$37="Endemic",INTRO!$E$39="Non-endemic"),IF(COUNTRY_INFO!C14=0," ",COUNTRY_INFO!C14)," ") -> Lemba | D14: =IF(COUNTRY_INFO!Z14<>"",COUNTRY_INFO!V14,0) -> 0 | E14: =IF(AND(COUNTRY_INFO!Z14<>"",COUNTRY_INFO!$H14=1),COUNTRY_INFO!F14+COUNTRY_INFO!G14,0) -> 0 | F14: 0 | H14: 0
A15: =IF(AND(INTRO!$E$37="Endemic",INTRO!$E$39="Non-endemic"),IF(COUNTRY_INFO!A15=0," ",COUNTRY_INFO!A15)," ") -> Sao Tome & Principe | B15: =IF(AND(INTRO!$E$37="Endemic",INTRO!$E$39="Non-endemic"),IF(COUNTRY_INFO!B15=0," ",COUNTRY_INFO!B15)," ") -> Sao Tome | C15: =IF(AND(INTRO!$E$37="Endemic",INTRO!$E$39="Non-endemic"),IF(COUNTRY_INFO!C15=0," ",COUNTRY_INFO!C15)," ") -> Cauè | D15: =IF(COUNTRY_INFO!Z15<>"",COUNTRY_INFO!V15,0) -> 0 | E15: =IF(AND(COUNTRY_INFO!Z15<>"",COUNTRY_INFO!$H15=1),COUNTRY_INFO!F15+COUNTRY_INFO!G15,0) -> 0 | F15: 0 | H15: 0
A16: =IF(AND(INTRO!$E$37="Endemic",INTRO!$E$39="Non-endemic"),IF(COUNTRY_INFO!A16=0," ",COUNTRY_INFO!A16)," ") -> Sao Tome & Principe | B16: =IF(AND(INTRO!$E$37="Endemic",INTRO!$E$39="Non-endemic"),IF(COUNTRY_INFO!B16=0," ",COUNTRY_INFO!B16)," ") -> Principe | C16: =IF(AND(INTRO!$E$37="Endemic",INTRO!$E$39="Non-endemic"),IF(COUNTRY_INFO!C16=0," ",COUNTRY_INFO!C16)," ") -> Píncipe | D16: =IF(COUNTRY_INFO!Z16<>"",COUNTRY_INFO!V16,0) -> 0 | E16: =IF(AND(COUNTRY_INFO!Z16<>"",COUNTRY_INFO!$H16=1),COUNTRY_INFO!F16+COUNTRY_INFO!G16,0) -> 0 | F16: 0 | H16: 0

Sheet SUMMARY
B2: Joint request for selected PC medicines v.4.1
B4: This form constitutes an official government request to WHO for the supply of the PC medicines. To ensure the medicines are delivered on time, the request for PC medicines should be submitted at least 9 months before the first date of MDA planned in the calendar year of the request.
B6: Country | C6: =IF(INTRO!$E$33<>0,INTRO!$E$33," ") -> Sao Tome & Principe | G6: Year | H6: =IF(INTRO!$E$35<>0,INTRO!$E$35," ") -> 2024
B8: Information on PC medicines requested to WHO
B10: PC medicine | C10: Target group | D10: Number of tablets | H10: Specify source
D11: Required | E11: In stock | F11: In pipeline | G11: Requested
B12: Diethylcarbamazine citrate | C12: ALL | D12: 0 | E12: 0 | G12: =IF(D12>(E12+F12),D12-E12-F12, 0) -> 0
G13: 0
B14: Ivermectin | C14: ALL | D14: 0 | E14: 0 | G14: 0
B16: Albendazole for LF | C16: ALL | D16: 0 | E16: 0 | G16: 0
G17: 0
B18: Albendazole for STH | C18: PreSAC | D18: 24523 | G18: 24523 | H18: OMS
C19: SAC | D19: 59770 | E19: 97800 | G19: 0 | H19: OMS
C20: WRA | D20: 54703 | G20: 54703 | H20: OMS
B22: Mebendazole | C22: PreSAC | G22: 0
C23: SAC | G23: 0
C24: WRA | G24: 0
B26: Praziquantel | C26: PreSAC | D26: 0 | G26: 0
C27: SAC | D27: 75938 | G27: 75938 | H27: OMS
C28: Adults | D28: 258513 | G28: =IF(D28>(E28+F28),D28-E28-F28, 0) -> 258513 | H28: OMS
B30: Number of people to be treated with donated medicine ( see User Guide for details )
B32: Disease | F32: Round 1 | G32: Round 2 | H32: Round 3
B33: Lymphatic filariasis | C33: These figures are estimated only for targeted age groups to be treated with donated medicines in areas where treatment for a specific disease is planned | F33: 0
B34: Onchocerciasis | F34: 0 | G34: 0
B35: Schistosomiasis | F35: 124140 | G35: 0
B36: Soil-transmitted helminthiases | F36: 138996 | G36: 0 | H36: 0
B40: Information on planned PC interventions
B42: PC medicine | C42: Planned date of the 1st round of PC | E42: Planned date of the 2nd round of PC | G42: Date by which the medicine should arrive to the national warehouse
B43: Diethylcarbamazine citrate
B44: Ivermectin
B45: Albendazole for LF
B46: Albendazole for STH | C46: February | D46: 2024 | E46: September | F46: 2024 | G46: December | H46: 2023
B47: Mebendazole
B48: Praziquantel | C48: February | D48: 2024 | G48: December | H48: 2023
B50: Checklist
B51: Submission
B52: What should be submitted?
B53: The supply of the requested medicines should be based on up-to-date epidemiological data, specific usage plans, and capacity for implementation. The following checklist ensures that all necessary forms and information are provided to WHO (in electronic format).
B54: Joint request for selected PC medicines
B55: Joint reporting form
B56: PC epidemiological data reporting form
B58: Availability of funding for implementation in the year for which the medicines are requested
B60: Diseases targeted for implementation | C60: Total treatments | D60: Funding secured for | E60: Source | H60: Amount
B61: =B33 -> Lymphatic filariasis | C61: =SUM(F33:H33) -> 0
B62: =B34 -> Onchocerciasis | C62: =SUM(F34:H34) -> 0
B63: =B35 -> Schistosomiasis | C63: =SUM(F35:H35) -> 124140 | E63: OMS/ESPEN
B64: =B36 -> Soil-transmitted helminthiases | C64: =SUM(F36:H36) -> 138996 | E64: OMS/ESPEN
B66: Who should fill in the form?
B67: National NTD coordinator should compile all required information needed to complete the request form. In the absence of such a coordinator, specific programme managers should coordinate their respective part. The final single request must be approved by the Ministry of Health.
B69: Information on person(s) who has filled in the form
B71: Title | C71: Name | E71: Phone | G71: Email | H71: Date
B72: NTD/PC Coordinator | C72: Alzira S. Silva do Rosario | E72: +239 9903627 | G72: rosarioalzira@gmail.com
B79: The WHO recommends that all serious adverse events suspected to be associated with use of PC medicines should be reported in accordance with national Pharmacovigilance guidelines. In the absence of a national Pharmacovigilance system, contact the WHO Neglected Tropical Disease department for guidance.
B80: The WHO is committed to facilitate PC medicines donation with a free-of-charge supply of a) albendazole, mebendazole and praziquantel to the MoH’s national warehouse; and b) diethylcarbamazine citrate to the entry port/airport of recipient countries.
B81: The institution submitting the present request is responsible for a) arranging the offloading of the medicines from the truck and storing it in the national warehouse and subsequent shipment to the final distribution centres; b) for registering the donated medicine, if required, by the relevant national regulatory authorities; and c) for informing about any changes of their PC campaigns (e.g. postpone of the planned MDA date, replacement of NTD coordinator, etc.).
C82: I have read and accept WHO Data Sharing Policy
C83: I confirm that all information provided in this form is complete and correct
B84: Name and signature of NTD coordinator or Ministry of Health representative | D84: Alzira S. Silva do Rosario
B85: Date: | D85: 2023-04-08
B87: Please complete information on shipment and consignee in the worksheet SHIPMENT. Any additional details related to this Request should be provided in the "Additional information" box in the worksheet SHIPMENT.
B88: Please send the national request (signed and in electronic format) to the concerned WR with copy to:
B89: WHO headquarters | C89: PC_JointForms@who.int
B90: WHO Regional Office | C90: Regional Advisor for NTD
B91: Mectizan donation program | C91: Dr Yao Sodahlon, email: ysodahlon@taskforce.org
B93: Please note that your request will be reviewed by an independent panel before approval. The information in this form, joint reporting form and PC epidemiological data reporting form are essential for WHO to ensure efficient usage of medicines. As part of its ongoing monitoring and evaluation activities, and to meet its contractual obligations to donors and other partners, WHO and its appointed agents reserve the right to periodically inspect stocks of the medicines at country level.

Sheet SHIPMENT
B2: Joint request for selected PC medicines v.4.1
B4: Country | C4: =IF(INTRO!$E$33<>0,INTRO!$E$33," ") -> Sao Tome & Principe | G4: Year | H4: =IF(INTRO!$E$35<>0,INTRO!$E$35," ") -> 2024
B6: Information on shipment and consignee
C8: Consignee | F8: Delivery point / Final recipient if different from the consignee
B9: Name | C9: ANCIA, DR. Anne | F9: Dra. Alzira S. Silva do Rosario
B10: Department/Unit | C10: Répresentant OMS à São Tome e Príncipe | F10: Coordonnateur
B11: Organization | C11: OMS- STP | F11: Programme Nattional de la Lute MTN
B12: Phone | C12: 00239 - 2223447 | F12: 00239 - 2221099
B13: Fax | C13: 00239 - 2221766
B14: E-mail | C14: afwcost@who.int | F14: rosarioalzira@gmail.com
B15: Mailing address | C15: 287 STP | F15: 23
C17: Consignee | F17: Delivery point / Final recipient if different from the consignee
B18: Name | C18: ANCIA, DR. Anne | F18: Dra. Alzira S. Silva do Rosario
B19: Department/Unit | C19: Répresentant OMS à São Tome e Príncipe | F19: Coordonnateur
B20: Organization | C20: OMS- STP | F20: Programme Nattional de la Lute MTN
B21: Phone | C21: 00239 - 2223447 | F21: 00239 - 2221099
B22: Fax | C22: 00239 - 2221766
B23: E-mail | C23: afwcost@who.int | F23: rosarioalzira@gmail.com
B24: Mailing address | C24: 287 STP | F24: 23
C26: Consignee | F26: Delivery point / Final recipient if different from the consignee
B27: Name
B28: Department/Unit
B29: Organization
B30: Phone
B31: Fax
B32: E-mail
B33: Mailing address
B36: Information on import requirements
B38: Is the Import Permit required? | H38: No
B39: How long does it take to obtain the Import Permit?
B40: Do you require any documents to be submitted together with the Import Permit application? | H40: No
B42: Does the consignee have to get customs clearance before the shipment can proceed? | H42: No
B43: Is there any additional information may be helpful in ensuring timely clearance and delivery of medicines to your country? | H43: No
B46: Additional information

Sheet DATA_POLICY (hidden)
B2: Joint request for selected PC medicines v.4.1
B4: Country | D4: =IF(INTRO!$E$33<>0,INTRO!$E$33," ") -> Sao Tome & Principe | G4: Year | H4: =IF(INTRO!$E$35<>0,INTRO!$E$35," ") -> 2024
B7: WHO Data Sharing Policy statement
B9: Data are the basis for all sound public health actions and the benefits of data sharing are widely recognized, including scientific and public health benefits. Whenever possible, WHO wishes to promote the sharing of health data, including but not restricted to surveillance and epidemiological data.
B14: ="In this connection, and without prejudice to information sharing and publication pursuant to legally binding instruments, by providing data to WHO, the Ministry of Health of " & D4 & ":" -> In this connection, and without prejudice to information sharing and publication pursuant to legally binding instruments, by providing data to WHO, the Ministry of Health of Sao Tome & Principe:
B18: Confirms that all data to be supplied to WHO hereunder have been collected in accordance with applicable national laws, including data protection laws aimed at protecting the confidentiality of identifiable persons;
B23: ="Agrees that WHO shall be entitled, subject always to measures to ensure the ethical and secure use of the data, and subject always to an appropriate acknowledgement of "&D4&":" -> Agrees that WHO shall be entitled, subject always to measures to ensure the ethical and secure use of the data, and subject always to an appropriate acknowledgement of Sao Tome & Principe:
C27: to publish the data, stripped of any personal identifiers and make the Data available to any interested party on request (to the extent they have not, or not yet, been published by WHO) on terms that allow non-commercial, not-for-profit use of the Data for public health purposes (provided always that publication of the Data shall remain under the control of WHO); to use, compile, aggregate, evaluate and analyse the Data and publish and disseminate the results thereof in conjunction with WHO’s work and in accordance with the Organization’s policies and practices.
B39: =CONCATENATE("Except where data sharing and publication is required under legally binding instruments (IHR, WHO Nomenclature Regulations 1967, etc.), the Ministry of Health of ", D4," may in respect of certain data opt out of (any part of) the above," & " by notifying WHO thereof in writing at the following address, provided that any such notification shall clearly identify the data in question and clearly indicate the scope of the opt-out (in reference to the above), " & "and provided that specific reasons shall be given for the opt out.") -> Except where data sharing and publication is required under legally binding instruments (IHR, WHO Nomenclature Regulations 1967, etc.), the Ministry of Health of Sao Tome & Principe may in respect of certain data opt out of (any part of) the above, by notifying WHO thereof in writing at the following address, provided that any such notification shall clearly identify the data in question and clearly indicate the scope of the opt-out (in reference to the above), and provided that specific reasons shall be given for the opt out.
